,Portfolio,Expense Area,Cost Centre,Expense Type,Account Code,Amount,Supplier Name,SupplierId,Pay Date,Transaction No.
INSERTED DETAIL,Economy Development & Culture,Sports and Recreation,LSD03,Vehicle Repair and Maintenance,0200,39.29,Arco Limited,100015,01/08/2013,10188875
INSERTED DETAIL,Resources & Corporate Governance ,Toilet Cleaning,WBC01,Materials,0303,805.37,Arco Limited,100015,01/08/2013,10188875
INSERTED DETAIL,Resources & Corporate Governance,Handy man,WHM00,Materials,0303,27.50,Arco Limited,100015,01/08/2013,10188875
INSERTED DETAIL,Resources & Corporate Governance ,Street Cleansing,WSC00,Materials,0303,16.04,Arco Limited,100015,01/08/2013,10188875
INSERTED DETAIL,Resources & Corporate Governance ,Garage Internal,WVR01,Materials,0303,120.66,Arco Limited,100015,01/08/2013,10188875
INSERTED DETAIL,Resources & Corporate Governance ,Grounds Maintenance,WGM00,Personal Protective Clothing,0340,43.12,Arco Limited,100015,01/08/2013,10188875
INSERTED DETAIL,Resources & Corporate Governance ,Toilet Cleaning,WBC01,Personal Protective Clothing,0340,8.91,Arco Limited,100015,08/08/2013,10189087
INSERTED DETAIL,Resources & Corporate Governance ,Grounds Maintenance,WGM00,Personal Protective Clothing,0340,93.80,Arco Limited,100015,08/08/2013,10189087
INSERTED DETAIL,Resources & Corporate Governance ,Highways,WHG00,Personal Protective Clothing,0340,13.40,Arco Limited,100015,08/08/2013,10189087
INSERTED DETAIL,Resources & Corporate Governance ,Street Cleansing,WSC00,Personal Protective Clothing,0340,107.20,Arco Limited,100015,08/08/2013,10189087
INSERTED DETAIL,Resources & Corporate Governance ,Garage Internal,WVR01,Personal Protective Clothing,0340,17.87,Arco Limited,100015,08/08/2013,10189087
INSERTED DETAIL,Resources & Corporate Governance ,Domestic Waste Collection,WWC00,Personal Protective Clothing,0340,187.59,Arco Limited,100015,08/08/2013,10189087
INSERTED DETAIL,Resources & Corporate Governance ,Trade Waste Collection,WWC01,Personal Protective Clothing,0340,17.87,Arco Limited,100015,08/08/2013,10189087
INSERTED DETAIL,Resources & Corporate Governance ,Garage Internal,WVR01,Materials,0303,72.40,Arco Limited,100015,15/08/2013,10189754
INSERTED DETAIL,Resources & Corporate Governance ,Domestic Waste Collection,WWC00,Materials,0303,289.50,Arco Limited,100015,15/08/2013,10189754
INSERTED DETAIL,Resources & Corporate Governance ,Toilet Cleaning,WBC01,Personal Protective Clothing,0340,5.10,Arco Limited,100015,15/08/2013,10189754
INSERTED DETAIL,Resources & Corporate Governance ,Grounds Maintenance,WGM00,Personal Protective Clothing,0340,1018.08,Arco Limited,100015,15/08/2013,10189754
INSERTED DETAIL,Resources & Corporate Governance ,Highways,WHG00,Personal Protective Clothing,0340,7.66,Arco Limited,100015,15/08/2013,10189754
INSERTED DETAIL,Resources & Corporate Governance ,Street Cleansing,WSC00,Personal Protective Clothing,0340,61.25,Arco Limited,100015,15/08/2013,10189754
INSERTED DETAIL,Resources & Corporate Governance ,Garage Internal,WVR01,Personal Protective Clothing,0340,10.20,Arco Limited,100015,15/08/2013,10189754
INSERTED DETAIL,Resources & Corporate Governance ,Domestic Waste Collection,WWC00,Personal Protective Clothing,0340,107.19,Arco Limited,100015,15/08/2013,10189754
INSERTED DETAIL,Resources & Corporate Governance ,Trade Waste Collection,WWC01,Personal Protective Clothing,0340,10.20,Arco Limited,100015,15/08/2013,10189754
INSERTED DETAIL,Resources & Corporate Governance ,General Administration,WAD00,Personal Protective Clothing,0340,29.95,Arco Limited,100015,29/08/2013,10190499
INSERTED DETAIL,Resources & Corporate Governance ,Toilet Cleaning,WBC01,Personal Protective Clothing,0340,20.60,Arco Limited,100015,29/08/2013,10190499
INSERTED DETAIL,Resources & Corporate Governance ,Grounds Maintenance,WGM00,Personal Protective Clothing,0340,216.29,Arco Limited,100015,29/08/2013,10190499
INSERTED DETAIL,Resources & Corporate Governance ,Highways,WHG00,Personal Protective Clothing,0340,30.90,Arco Limited,100015,29/08/2013,10190499
INSERTED DETAIL,Resources & Corporate Governance ,Street Cleansing,WSC00,Personal Protective Clothing,0340,247.20,Arco Limited,100015,29/08/2013,10190499
INSERTED DETAIL,Resources & Corporate Governance ,Garage Internal,WVR01,Personal Protective Clothing,0340,41.20,Arco Limited,100015,29/08/2013,10190499
INSERTED DETAIL,Resources & Corporate Governance ,Domestic Waste Collection,WWC00,Personal Protective Clothing,0340,432.60,Arco Limited,100015,29/08/2013,10190499
INSERTED DETAIL,Resources & Corporate Governance ,Trade Waste Collection,WWC01,Personal Protective Clothing,0340,41.20,Arco Limited,100015,29/08/2013,10190499
INSERTED DETAIL,Sustainable Inclusive Communities,Housing Options Team,HOT00,Rents,0140,1152.00,Alma Lodge Hotel,100026,08/08/2013,10188500
INSERTED DETAIL,Sustainable Inclusive Communities,Woodside Park,TVR00,R&M External Contractors,0100,88.04,AWM Electrical Contractors Ltd,100051,01/08/2013,10189167
INSERTED DETAIL,Housing Revenue Account ,Unplanned Maintenance and Repair,UMR00,R&M External Contractors,0100,1246.01,AWM Electrical Contractors Ltd,100051,01/08/2013,10189167
INSERTED DETAIL,Capital Program ,Rewiring,HCE20,Capital Contract Payments,5000,398.74,AWM Electrical Contractors Ltd,100051,01/08/2013,10189167
INSERTED DETAIL,Housing Revenue Account ,Unplanned Maintenance and Repair,UMR00,R&M External Contractors,0100,1846.36,AWM Electrical Contractors Ltd,100051,01/08/2013,10189168
INSERTED DETAIL,Capital Program ,Rewiring,HCE20,Capital Contract Payments,5000,1613.00,AWM Electrical Contractors Ltd,100051,01/08/2013,10189168
INSERTED DETAIL,Housing Revenue Account ,Unplanned Maintenance and Repair,UMR00,R&M External Contractors,0100,509.00,AWM Electrical Contractors Ltd,100051,01/08/2013,10189169
INSERTED DETAIL,Capital Program ,Disabled Adaptations,HCR01,Capital Contract Payments,5000,278.64,AWM Electrical Contractors Ltd,100051,01/08/2013,10189169
INSERTED DETAIL,Housing Revenue Account ,Unplanned Maintenance and Repair,UMR00,R&M External Contractors,0100,5787.09,AWM Electrical Contractors Ltd,100051,08/08/2013,10189419
INSERTED DETAIL,Capital Program ,Rewiring,HCE20,Capital Contract Payments,5000,1090.27,AWM Electrical Contractors Ltd,100051,08/08/2013,10189419
INSERTED DETAIL,Capital Program ,Disabled Adaptations,HCR01,Capital Contract Payments,5000,176.30,AWM Electrical Contractors Ltd,100051,08/08/2013,10189419
INSERTED DETAIL,Sustainable Inclusive Communities,Woodside Park,TVR00,R&M External Contractors,0100,68.12,AWM Electrical Contractors Ltd,100051,15/08/2013,10189585
INSERTED DETAIL,Housing Revenue Account ,Unplanned Maintenance and Repair,UMR00,R&M External Contractors,0100,5583.95,AWM Electrical Contractors Ltd,100051,15/08/2013,10189585
INSERTED DETAIL,Housing Revenue Account ,Unplanned Maintenance and Repair,UMR00,R&M External Contractors,0100,568.51,AWM Electrical Contractors Ltd,100051,08/08/2013,10189721
INSERTED DETAIL,Housing Revenue Account ,Unplanned Maintenance and Repair,UMR00,R&M External Contractors,0100,377.30,AWM Electrical Contractors Ltd,100051,15/08/2013,10189818
INSERTED DETAIL,Housing Revenue Account ,Repairs and Maintenance - Void works,UMR09,R&M External Contractors,0100,138.36,AWM Electrical Contractors Ltd,100051,15/08/2013,10189818
INSERTED DETAIL,Housing Revenue Account ,Supervision and Management General,MAN00,Movement Incentives,0454,17.02,AWM Electrical Contractors Ltd,100051,15/08/2013,10189818
INSERTED DETAIL,Housing Revenue Account ,Unplanned Maintenance and Repair,UMR00,R&M External Contractors,0100,560.39,AWM Electrical Contractors Ltd,100051,15/08/2013,10189819
INSERTED DETAIL,Housing Revenue Account ,Unplanned Maintenance and Repair,UMR00,R&M External Contractors,0100,2186.79,AWM Electrical Contractors Ltd,100051,15/08/2013,10190045
INSERTED DETAIL,Housing Revenue Account ,Repairs and Maintenance - Void works,UMR09,R&M External Contractors,0100,320.29,AWM Electrical Contractors Ltd,100051,15/08/2013,10190045
INSERTED DETAIL,Capital Program ,Kitchen Modifications,HIK10,Capital Contract Payments,5000,6893.58,A C E Carpentry & Joinery Contractors Ltd,100085,08/08/2013,10189472
INSERTED DETAIL,Capital Program ,Kitchen Modifications,HIK10,Capital Contract Payments,5000,4595.72,A C E Carpentry & Joinery Contractors Ltd,100085,08/08/2013,10189473
INSERTED DETAIL,Capital Program ,Kitchen Modifications,HIK10,Capital Contract Payments,5000,9191.44,A C E Carpentry & Joinery Contractors Ltd,100085,22/08/2013,10189878
INSERTED DETAIL,Capital Program ,Kitchen Modifications,HIK10,Capital Contract Payments,5000,9191.44,A C E Carpentry & Joinery Contractors Ltd,100085,22/08/2013,10190055
INSERTED DETAIL,Capital Program ,Kitchen Modifications,HIK10,Capital Contract Payments,5000,11489.30,A C E Carpentry & Joinery Contractors Ltd,100085,29/08/2013,10190317
INSERTED DETAIL,Economy Development & Culture,The Benn Hall,BHL00,R&M External Contractors,0100,6097.00,DC Leisure Rugby,100140,15/08/2013,10189863
INSERTED DETAIL,Economy Development & Culture,The Benn Hall,BHL00,R&M External Contractors,0100,-1145.68,DC Leisure Rugby,100140,15/08/2013,10189864
INSERTED DETAIL,Economy Development & Culture,Car Parks General,CPK01,R&M External Contractors,0100,102.00,Cale Briparc Ltd,100158,08/08/2013,10188534
INSERTED DETAIL,Economy Development & Culture,Decrim. of Car Parking on street parking,DPE02,R&M External Contractors,0100,408.00,Cale Briparc Ltd,100158,08/08/2013,10188534
INSERTED DETAIL,Resources & Corporate Governance ,Council Tax and NNDR Collection,CTX01,External Contractor & Operator,0742,85.00,Bristow & Sutor,100159,08/08/2013,10189592
INSERTED DETAIL,Resources & Corporate Governance ,Council Tax and NNDR Collection,CTX01,External Contractor & Operator,0742,180.00,Bristow & Sutor,100159,29/08/2013,10190282
INSERTED DETAIL,Resources & Corporate Governance ,Town Hall,OFF00,R&M External Contractors,0100,75.78,British Telecommunications Plc,100161,01/08/2013,10187816
INSERTED DETAIL,Economy Development & Culture,Art Gallery and Museum,AGM00,Telephone Expenses,0371,209.98,British Telecommunications Plc,100161,01/08/2013,10187816
INSERTED DETAIL,Economy Development & Culture,The Benn Hall,BHL00,Telephone Expenses,0371,169.68,British Telecommunications Plc,100161,01/08/2013,10187816
INSERTED DETAIL,Housing Revenue Account ,Control Centre (HRA),CCE00,Telephone Expenses,0371,54.15,British Telecommunications Plc,100161,01/08/2013,10187816
INSERTED DETAIL,Resources & Corporate Governance ,Customer and Information Strategy,CIS10,Telephone Expenses,0371,1073.69,British Telecommunications Plc,100161,01/08/2013,10187816
INSERTED DETAIL,Resources & Corporate Governance ,Civic Responsibilities,CIV00,Telephone Expenses,0371,43.15,British Telecommunications Plc,100161,01/08/2013,10187816
INSERTED DETAIL,Economy Development & Culture,Car Parks General,CPK01,Telephone Expenses,0371,18.51,British Telecommunications Plc,100161,01/08/2013,10187816
INSERTED DETAIL,Economy Development & Culture,Decrim. of Car Parking on street parking,DPE02,Telephone Expenses,0371,74.04,British Telecommunications Plc,100161,01/08/2013,10187816
INSERTED DETAIL,Sustainable Inclusive Communities,Housing Benefit Administration,HBA00,Telephone Expenses,0371,37.89,British Telecommunications Plc,100161,01/08/2013,10187816
INSERTED DETAIL,Resources & Corporate Governance ,Town Hall,OFF00,Telephone Expenses,0371,37.89,British Telecommunications Plc,100161,01/08/2013,10187816
INSERTED DETAIL,Sustainable Environment ,Caldecott Park/Town Centre Area,PKS00,Telephone Expenses,0371,52.55,British Telecommunications Plc,100161,01/08/2013,10187816
INSERTED DETAIL,Resources & Corporate Governance ,Central Telephone Service,TEL00,Telephone Expenses,0371,37.89,British Telecommunications Plc,100161,01/08/2013,10187816
INSERTED DETAIL,Economy Development & Culture,Visitor Centre,VSC00,Telephone Expenses,0371,113.82,British Telecommunications Plc,100161,01/08/2013,10187816
INSERTED DETAIL,Resources & Corporate Governance ,Council Tax and NNDR Collection,CTX01,Software Maintenance,0374,251.52,British Telecommunications Plc,100161,01/08/2013,10187816
INSERTED DETAIL,Housing Revenue Account ,Unplanned Maintenance and Repair,UMR00,R&M External Contractors,0100,1872.84,Barron McCann Ltd,100248,15/08/2013,10189871
INSERTED DETAIL,Resources & Corporate Governance,Corporate Property R&M,CPA01,R&M External Contractors,0100,720.00,Chillaire Service & Maintenance Ltd,100305,22/08/2013,10189948
INSERTED DETAIL,Resources & Corporate Governance,Corporate Property R&M,CPA01,R&M External Contractors,0100,4950.00,Chillaire Service & Maintenance Ltd,100305,22/08/2013,10189970
INSERTED DETAIL,Resources & Corporate Governance,Corporate Property R&M,CPA01,R&M External Contractors,0100,715.00,Chillaire Service & Maintenance Ltd,100305,22/08/2013,10189971
INSERTED DETAIL,Resources & Corporate Governance,Corporate Property R&M,CPA01,R&M External Contractors,0100,1019.16,Chillaire Service & Maintenance Ltd,100305,29/08/2013,10190131
INSERTED DETAIL,Resources & Corporate Governance,Corporate Property R&M,CPA01,R&M External Contractors,0100,458.96,Chillaire Service & Maintenance Ltd,100305,29/08/2013,10190193
INSERTED DETAIL,Housing Revenue Account ,Voids & Allocations Team,MAN24,IT Capital Expenditure,5025,510.00,Stone Computers,100390,01/08/2013,10189200
INSERTED DETAIL,Housing Revenue Account ,Voids & Allocations Team,MAN24,IT Capital Expenditure,5025,510.00,Stone Computers,100390,08/08/2013,10189330
INSERTED DETAIL,Economy Development & Culture,Economic Development General,ECD00,Development Activities,0450,2000.00,Coventry & Warwickshire Chamber Of Commerce,100412,22/08/2013,10190136
INSERTED DETAIL,Sustainable Environment ,Clinical Waste,REF04,External Contractor & Operator,0742,515.49,OCS Group UK Ltd t/a Cannon,100436,15/08/2013,10189981
INSERTED DETAIL,Resources & Corporate Governance ,Domestic Waste Collection,WWC00,Vehicle Repair and Maintenance,0200,483.21,Dennis Eagle Ltd,100559,08/08/2013,10188698
INSERTED DETAIL,Resources & Corporate Governance ,Trade Waste Collection,WWC01,Vehicle Repair and Maintenance,0200,455.00,Dennis Eagle Ltd,100559,29/08/2013,10190411
INSERTED DETAIL,Capital Program ,Bathroom Modifications,HIS01,Capital Contract Payments,5000,22455.00,JADA Building & Maintenance Services Ltd,100583,01/08/2013,10188340
INSERTED DETAIL,Capital Program ,Bathroom Modifications,HIS01,Capital Contract Payments,5000,22375.00,JADA Building & Maintenance Services Ltd,100583,01/08/2013,10188893
INSERTED DETAIL,Capital Program ,Bathroom Modifications,HIS01,Capital Contract Payments,5000,21570.00,JADA Building & Maintenance Services Ltd,100583,01/08/2013,10189060
INSERTED DETAIL,Capital Program ,Disabled Adaptations,HCR01,Capital Contract Payments,5000,3600.00,JADA Building & Maintenance Services Ltd,100583,01/08/2013,10189173
INSERTED DETAIL,Capital Program ,Bathroom Modifications,HIS01,Capital Contract Payments,5000,2630.00,JADA Building & Maintenance Services Ltd,100583,01/08/2013,10189173
INSERTED DETAIL,Capital Program ,Bathroom Modifications,HIS01,Capital Contract Payments,5000,27365.00,JADA Building & Maintenance Services Ltd,100583,08/08/2013,10189475
INSERTED DETAIL,Capital Program ,Bathroom Modifications,HIS01,Capital Contract Payments,5000,25675.00,JADA Building & Maintenance Services Ltd,100583,22/08/2013,10189998
INSERTED DETAIL,Capital Program ,Disabled Adaptations,HCR01,Capital Contract Payments,5000,1800.00,JADA Building & Maintenance Services Ltd,100583,15/08/2013,10190048
INSERTED DETAIL,Capital Program ,Bathroom Modifications,HIS01,Capital Contract Payments,5000,2640.00,JADA Building & Maintenance Services Ltd,100583,15/08/2013,10190048
INSERTED DETAIL,Capital Program ,Bathroom Modifications,HIS01,Capital Contract Payments,5000,24870.00,JADA Building & Maintenance Services Ltd,100583,29/08/2013,10190270
INSERTED DETAIL,Capital Program ,Bathroom Modifications,HIS01,Capital Contract Payments,5000,20765.00,JADA Building & Maintenance Services Ltd,100583,29/08/2013,10190369
INSERTED DETAIL,Resources & Corporate Governance,Corporate Property Central Utilities,CPA02,Gas,0131,986.40,ESPO,100641,22/08/2013,10190059
INSERTED DETAIL,Housing Revenue Account ,Tanser Court AP,AGP17,Gas,0131,712.59,ESPO,100641,29/08/2013,10190123
INSERTED DETAIL,Resources & Corporate Governance,Handy man,WHM00,Agency Staff,0003,428.17,First Personnel Group Plc,100807,15/08/2013,10189976
INSERTED DETAIL,Resources & Corporate Governance,Handy man,WHM00,Agency Staff,0003,428.17,First Personnel Group Plc,100807,22/08/2013,10190207
INSERTED DETAIL,Capital Program ,Fire Risk Assessment,HCE18,Capital Contract Payments,5000,80368.70,Nationwide Windows Ltd,100808,22/08/2013,10190177
INSERTED DETAIL,Capital Program ,Fire Risk Assessment,HCE18,Capital Contract Payments,5000,44679.36,Nationwide Windows Ltd,100808,29/08/2013,10190178
INSERTED DETAIL,Resources & Corporate Governance ,Trade Waste Collection,WWC01,External Contractor & Operator,0742,1371.72,Container Services UK Limited,100811,01/08/2013,10188509
INSERTED DETAIL,,Balance Sheet,BS,Car Leasing Scheme,9244,5644.75,Lex Autolease Ltd,100844,22/08/2013,10190174
INSERTED DETAIL,,Balance Sheet,BS,Car Leasing Scheme,9244,-1118.04,Lex Autolease Ltd,100844,22/08/2013,10190191
INSERTED DETAIL,,Balance Sheet,BS,Car Leasing Scheme,9244,4977.98,Lex Autolease Ltd,100844,29/08/2013,10190505
INSERTED DETAIL,Resources & Corporate Governance ,Town Hall,OFF00,Materials,0303,1039.80,Greenham,100890,15/08/2013,10189601
INSERTED DETAIL,Sustainable Environment ,Caldecott Park/Town Centre Area,PKS00,Maintenance of Equipment,0301,651.00,GB Sport & Leisure UK Ltd,100920,15/08/2013,10189900
INSERTED DETAIL,Resources & Corporate Governance ,Human Resources Centralised Services,RES31,Recruitment Expenses,0012,1965.00,TMP (UK) LTD,100972,01/08/2013,10188458
INSERTED DETAIL,Resources & Corporate Governance ,Human Resources Centralised Services,RES31,Recruitment Expenses,0012,1001.40,TMP (UK) LTD,100972,01/08/2013,10188459
INSERTED DETAIL,Resources & Corporate Governance ,Human Resources Centralised Services,RES31,Recruitment Expenses,0012,650.00,TMP (UK) LTD,100972,01/08/2013,10188678
INSERTED DETAIL,Resources & Corporate Governance ,Human Resources Centralised Services,RES31,Recruitment Expenses,0012,1230.00,TMP (UK) LTD,100972,01/08/2013,10188679
INSERTED DETAIL,Resources & Corporate Governance ,Human Resources Centralised Services,RES31,Recruitment Expenses,0012,2060.00,TMP (UK) LTD,100972,01/08/2013,10188680
INSERTED DETAIL,Resources & Corporate Governance ,Human Resources Centralised Services,RES31,Recruitment Expenses,0012,744.80,TMP (UK) LTD,100972,01/08/2013,10189211
INSERTED DETAIL,Resources & Corporate Governance ,Human Resources Centralised Services,RES31,Recruitment Expenses,0012,535.00,TMP (UK) LTD,100972,22/08/2013,10190106
INSERTED DETAIL,Resources & Corporate Governance ,Domestic Waste Collection,WWC00,Vehicle Repair and Maintenance,0200,1175.00,H.L. Smith (Transmissions) Ltd,101096,08/08/2013,10189289
INSERTED DETAIL,Resources & Corporate Governance ,Domestic Waste Collection,WWC00,Materials,0303,2400.00,Imperial Polythene Products Limited,101157,15/08/2013,10189565
INSERTED DETAIL,Resources & Corporate Governance,Handy man,WHM00,External Contractor & Operator,0742,507.84,Clews Recycling Limited,101213,29/08/2013,10190472
INSERTED DETAIL,Resources & Corporate Governance ,Grounds Maintenance,WGM00,External Contractor & Operator,0742,7484.00,K A Hicks,101216,01/08/2013,10188751
INSERTED DETAIL,Resources & Corporate Governance ,Grounds Maintenance,WGM00,External Contractor & Operator,0742,7484.00,K A Hicks,101216,01/08/2013,10188754
INSERTED DETAIL,Resources & Corporate Governance ,Grounds Maintenance,WGM00,External Contractor & Operator,0742,7484.00,K A Hicks,101216,22/08/2013,10189729
INSERTED DETAIL,Resources & Corporate Governance,Handy man,WHM00,Materials,0303,435.00,Melbros Ltd,101291,29/08/2013,10187338
INSERTED DETAIL,Resources & Corporate Governance,Handy man,WHM00,Materials,0303,447.01,Melbros Ltd,101291,15/08/2013,10189524
INSERTED DETAIL,Resources & Corporate Governance,Handy man,WHM00,Materials,0303,515.00,Melbros Ltd,101291,22/08/2013,10189526
INSERTED DETAIL,Resources & Corporate Governance,Handy man,WHM00,Materials,0303,447.01,Melbros Ltd,101291,29/08/2013,10189529
INSERTED DETAIL,Resources & Corporate Governance,Handy man,WHM00,Materials,0303,862.01,Melbros Ltd,101291,29/08/2013,10189530
INSERTED DETAIL,Resources & Corporate Governance,Handy man,WHM00,Materials,0303,804.01,Melbros Ltd,101291,15/08/2013,10189537
INSERTED DETAIL,Resources & Corporate Governance,Handy man,WHM00,Materials,0303,1021.99,Melbros Ltd,101291,29/08/2013,10190381
INSERTED DETAIL,Resources & Corporate Governance,Corporate Property R&M,CPA01,R&M External Contractors,0100,1365.00,Msm Environmental Services,101317,15/08/2013,10189821
INSERTED DETAIL,Resources & Corporate Governance ,Street Cleansing,WSC00,Vehicle Repair and Maintenance,0200,654.62,Noden Truck Centre Ltd,101368,08/08/2013,10189341
INSERTED DETAIL,Resources & Corporate Governance ,Street Cleansing,WSC00,Vehicle Repair and Maintenance,0200,549.93,Noden Truck Centre Ltd,101368,15/08/2013,10189773
INSERTED DETAIL,Resources & Corporate Governance ,Grounds Maintenance,WGM00,Materials,0303,822.00,Nomix Enviro Ltd,101369,15/08/2013,10189090
INSERTED DETAIL,Economy Development & Culture,Visitor Centre,VSC00,Events Tickets - Zero Rated,1405,1776.16,National Express Ltd,101392,08/08/2013,10189421
INSERTED DETAIL,Sustainable Environment,Regulatory Services,REG00,External Contractor & Operator,0742,734.25,Osborne Richardson,101412,08/08/2013,10189479
INSERTED DETAIL,Sustainable Inclusive Communities,CL Grants,CGS00,Other Agencies,0734,12000.00,Orbit Group Limited,101414,29/08/2013,10190298
INSERTED DETAIL,Resources & Corporate Governance,Central Business Support Services,CSS15,External Printing,0352,930.00,Polycopy,101428,01/08/2013,10189280
INSERTED DETAIL,Resources & Corporate Governance ,Land Charges,LCH00,Maintenance of Equipment,0301,647.38,Polycopy,101428,22/08/2013,10190104
INSERTED DETAIL,Sustainable Environment,Regulatory Services,REG00,Vehicle Running Costs,0201,440.00,Post Office Ltd,101429,22/08/2013,10190141
INSERTED DETAIL,Resources & Corporate Governance ,Highways,WHG00,Vehicle Running Costs,0201,650.00,Post Office Ltd,101429,22/08/2013,10190141
INSERTED DETAIL,Resources & Corporate Governance,Handy man,WHM00,Vehicle Running Costs,0201,1100.00,Post Office Ltd,101429,22/08/2013,10190141
INSERTED DETAIL,Resources & Corporate Governance ,Domestic Waste Collection,WWC00,Vehicle Running Costs,0201,650.00,Post Office Ltd,101429,22/08/2013,10190141
INSERTED DETAIL,Sustainable Environment ,Caldecott Park/Town Centre Area,PKS00,R&M External Contractors,0100,512.52,PJT Pumping Services,101438,08/08/2013,10189574
INSERTED DETAIL,Sustainable Inclusive Communities,Sewage Disposal Plant,SDP00,R&M External Contractors,0100,520.28,PJT Pumping Services,101438,08/08/2013,10189580
INSERTED DETAIL,Resources & Corporate Governance ,"Communications, Consultation and Information Team",BTR20,IT Capital Expenditure,5025,2786.67,Phoenix Software Ltd,101450,01/08/2013,10188902
INSERTED DETAIL,Capital Program ,Disabled Adaptations,HCR01,Capital Contract Payments,5000,900.00,Reeds Plumbing & Heating Contractors Ltd,101504,29/08/2013,10190583
INSERTED DETAIL,Economy Development & Culture,The Benn Hall,BHL00,Rates,0141,17427.00,Rugby Borough Council,101516,22/08/2013,10190127
INSERTED DETAIL,Housing Revenue Account ,Property Maintenance,MAN23,Agency Staff,0003,485.63,Rugby Recruitment Services Ltd,101521,01/08/2013,10189023
INSERTED DETAIL,Housing Revenue Account ,Property Maintenance,MAN23,Agency Staff,0003,485.63,Rugby Recruitment Services Ltd,101521,08/08/2013,10189427
INSERTED DETAIL,Housing Revenue Account ,Property Maintenance,MAN23,Agency Staff,0003,485.63,Rugby Recruitment Services Ltd,101521,15/08/2013,10189857
INSERTED DETAIL,Housing Revenue Account ,Property Maintenance,MAN23,Agency Staff,0003,485.63,Rugby Recruitment Services Ltd,101521,29/08/2013,10190521
INSERTED DETAIL,Capital Program ,Capital Partnership Fund,CGR01,Capital Grants,5014,4332.03,Rugby Rosa,101534,22/08/2013,10190243
INSERTED DETAIL,Economy Development & Culture,Grants and Subscriptions,LGS00,Grants To Voluntary Organisations,0720,500.00,Rugby Theatre,101539,15/08/2013,10189860
INSERTED DETAIL,Economy Development & Culture,Art Gallery and Museum,AGM00,Postage & Distribution,0370,40.19,Royal Mail,101554,22/08/2013,10187985
INSERTED DETAIL,Economy Development & Culture,Building Control Services,BCS00,Postage & Distribution,0370,0.14,Royal Mail,101554,22/08/2013,10187985
INSERTED DETAIL,Economy Development & Culture,Building Control Services Non-Fee Earning Account,BCS01,Postage & Distribution,0370,0.14,Royal Mail,101554,22/08/2013,10187985
INSERTED DETAIL,Economy Development & Culture,Building Regulation Fee Earning Account,BCS99,Postage & Distribution,0370,2.49,Royal Mail,101554,22/08/2013,10187985
INSERTED DETAIL,Economy Development & Culture,Car Parks General,CPK01,Postage & Distribution,0370,57.24,Royal Mail,101554,22/08/2013,10187985
INSERTED DETAIL,Resources & Corporate Governance,Central Business Support Services,CSS15,Postage & Distribution,0370,409.58,Royal Mail,101554,22/08/2013,10187985
INSERTED DETAIL,Resources & Corporate Governance ,Council Tax and NNDR Collection,CTX01,Postage & Distribution,0370,249.57,Royal Mail,101554,22/08/2013,10187985
INSERTED DETAIL,Economy Development & Culture,Decrim. of Car Parking on street parking,DPE02,Postage & Distribution,0370,228.94,Royal Mail,101554,22/08/2013,10187985
INSERTED DETAIL,Resources & Corporate Governance ,Electoral Registration,ERG00,Postage & Distribution,0370,0.47,Royal Mail,101554,22/08/2013,10187985
INSERTED DETAIL,Sustainable Inclusive Communities,Housing Benefit Administration,HBA00,Postage & Distribution,0370,224.84,Royal Mail,101554,22/08/2013,10187985
INSERTED DETAIL,Housing Revenue Account ,Supervision and Management General,MAN00,Postage & Distribution,0370,2051.84,Royal Mail,101554,22/08/2013,10187985
INSERTED DETAIL,Economy Development & Culture,Planning General/Income,PLN00,Postage & Distribution,0370,225.55,Royal Mail,101554,22/08/2013,10187985
INSERTED DETAIL,Economy Development & Culture,Visitor Centre,VSC00,Postage & Distribution,0370,24.01,Royal Mail,101554,22/08/2013,10187985
INSERTED DETAIL,Resources & Corporate Governance ,General Administration,WAD00,Postage & Distribution,0370,13.35,Royal Mail,101554,22/08/2013,10187985
INSERTED DETAIL,Economy Development & Culture,Art Gallery and Museum,AGM00,Postage & Distribution,0370,7.37,Royal Mail,101554,29/08/2013,10188869
INSERTED DETAIL,Economy Development & Culture,Building Control Services,BCS00,Postage & Distribution,0370,0.05,Royal Mail,101554,29/08/2013,10188869
INSERTED DETAIL,Economy Development & Culture,Building Control Services Non-Fee Earning Account,BCS01,Postage & Distribution,0370,0.05,Royal Mail,101554,29/08/2013,10188869
INSERTED DETAIL,Economy Development & Culture,Building Regulation Fee Earning Account,BCS99,Postage & Distribution,0370,0.90,Royal Mail,101554,29/08/2013,10188869
INSERTED DETAIL,Economy Development & Culture,Car Parks General,CPK01,Postage & Distribution,0370,34.30,Royal Mail,101554,29/08/2013,10188869
INSERTED DETAIL,Resources & Corporate Governance,Central Business Support Services,CSS15,Postage & Distribution,0370,409.44,Royal Mail,101554,29/08/2013,10188869
INSERTED DETAIL,Resources & Corporate Governance ,Council Tax and NNDR Collection,CTX01,Postage & Distribution,0370,60.27,Royal Mail,101554,29/08/2013,10188869
INSERTED DETAIL,Economy Development & Culture,Decrim. of Car Parking on street parking,DPE02,Postage & Distribution,0370,137.18,Royal Mail,101554,29/08/2013,10188869
INSERTED DETAIL,Resources & Corporate Governance ,Electoral Registration,ERG00,Postage & Distribution,0370,4.07,Royal Mail,101554,29/08/2013,10188869
INSERTED DETAIL,Sustainable Inclusive Communities,Housing Benefit Administration,HBA00,Postage & Distribution,0370,257.41,Royal Mail,101554,29/08/2013,10188869
INSERTED DETAIL,Housing Revenue Account ,Supervision and Management General,MAN00,Postage & Distribution,0370,199.11,Royal Mail,101554,29/08/2013,10188869
INSERTED DETAIL,Economy Development & Culture,Planning General/Income,PLN00,Postage & Distribution,0370,199.36,Royal Mail,101554,29/08/2013,10188869
INSERTED DETAIL,Economy Development & Culture,Visitor Centre,VSC00,Postage & Distribution,0370,2.13,Royal Mail,101554,29/08/2013,10188869
INSERTED DETAIL,Resources & Corporate Governance ,General Administration,WAD00,Postage & Distribution,0370,23.73,Royal Mail,101554,29/08/2013,10188869
INSERTED DETAIL,Economy Development & Culture,Art Gallery and Museum,AGM00,Postage & Distribution,0370,3.76,Royal Mail,101554,29/08/2013,10189689
INSERTED DETAIL,Economy Development & Culture,Car Parks General,CPK01,Postage & Distribution,0370,63.28,Royal Mail,101554,29/08/2013,10189689
INSERTED DETAIL,Resources & Corporate Governance,Central Business Support Services,CSS15,Postage & Distribution,0370,266.99,Royal Mail,101554,29/08/2013,10189689
INSERTED DETAIL,Resources & Corporate Governance ,Council Tax and NNDR Collection,CTX01,Postage & Distribution,0370,32.73,Royal Mail,101554,29/08/2013,10189689
INSERTED DETAIL,Economy Development & Culture,Decrim. of Car Parking on street parking,DPE02,Postage & Distribution,0370,253.10,Royal Mail,101554,29/08/2013,10189689
INSERTED DETAIL,Resources & Corporate Governance ,Electoral Registration,ERG00,Postage & Distribution,0370,1.13,Royal Mail,101554,29/08/2013,10189689
INSERTED DETAIL,Sustainable Inclusive Communities,Housing Benefit Administration,HBA00,Postage & Distribution,0370,229.09,Royal Mail,101554,29/08/2013,10189689
INSERTED DETAIL,Housing Revenue Account ,Supervision and Management General,MAN00,Postage & Distribution,0370,70.04,Royal Mail,101554,29/08/2013,10189689
INSERTED DETAIL,Economy Development & Culture,Planning General/Income,PLN00,Postage & Distribution,0370,296.72,Royal Mail,101554,29/08/2013,10189689
INSERTED DETAIL,Resources & Corporate Governance ,General Administration,WAD00,Postage & Distribution,0370,10.81,Royal Mail,101554,29/08/2013,10189689
INSERTED DETAIL,Economy Development & Culture,Art Gallery and Museum,AGM00,Postage & Distribution,0370,3.78,Royal Mail,101554,29/08/2013,10190267
INSERTED DETAIL,Economy Development & Culture,Building Control Services,BCS00,Postage & Distribution,0370,0.11,Royal Mail,101554,29/08/2013,10190267
INSERTED DETAIL,Economy Development & Culture,Building Control Services Non-Fee Earning Account,BCS01,Postage & Distribution,0370,0.11,Royal Mail,101554,29/08/2013,10190267
INSERTED DETAIL,Economy Development & Culture,Building Regulation Fee Earning Account,BCS99,Postage & Distribution,0370,1.93,Royal Mail,101554,29/08/2013,10190267
INSERTED DETAIL,Economy Development & Culture,Car Parks General,CPK01,Postage & Distribution,0370,36.40,Royal Mail,101554,29/08/2013,10190267
INSERTED DETAIL,Resources & Corporate Governance,Central Business Support Services,CSS15,Postage & Distribution,0370,281.44,Royal Mail,101554,29/08/2013,10190267
INSERTED DETAIL,Resources & Corporate Governance ,Council Tax and NNDR Collection,CTX01,Postage & Distribution,0370,362.61,Royal Mail,101554,29/08/2013,10190267
INSERTED DETAIL,Economy Development & Culture,Decrim. of Car Parking on street parking,DPE02,Postage & Distribution,0370,145.66,Royal Mail,101554,29/08/2013,10190267
INSERTED DETAIL,Resources & Corporate Governance ,Electoral Registration,ERG00,Postage & Distribution,0370,7.08,Royal Mail,101554,29/08/2013,10190267
INSERTED DETAIL,Sustainable Inclusive Communities,Housing Benefit Administration,HBA00,Postage & Distribution,0370,240.28,Royal Mail,101554,29/08/2013,10190267
INSERTED DETAIL,Housing Revenue Account ,Supervision and Management General,MAN00,Postage & Distribution,0370,86.20,Royal Mail,101554,29/08/2013,10190267
INSERTED DETAIL,Economy Development & Culture,Planning General/Income,PLN00,Postage & Distribution,0370,235.79,Royal Mail,101554,29/08/2013,10190267
INSERTED DETAIL,Economy Development & Culture,Visitor Centre,VSC00,Postage & Distribution,0370,1.33,Royal Mail,101554,29/08/2013,10190267
INSERTED DETAIL,Resources & Corporate Governance ,General Administration,WAD00,Postage & Distribution,0370,22.57,Royal Mail,101554,29/08/2013,10190267
INSERTED DETAIL,Sustainable Inclusive Communities,Housing Strategy & Enabling,HSE00,Other Agencies,0734,900.00,Rugby Citizens Advice Bureau,101563,29/08/2013,10190305
INSERTED DETAIL,Capital Program ,Disabled Adaptations,HCR01,Capital Contract Payments,5000,3849.00,Stannah Stairlifts Ltd,101623,01/08/2013,10189108
INSERTED DETAIL,Capital Program ,Disabled Facilities Grant,REN01,Capital Grants,5014,1886.00,Stannah Stairlifts Ltd,101623,08/08/2013,10189235
INSERTED DETAIL,Capital Program ,Disabled Facilities Grant,REN01,Capital Grants,5014,1455.00,Stannah Stairlifts Ltd,101623,08/08/2013,10189405
INSERTED DETAIL,Capital Program ,Disabled Facilities Grant,REN01,Capital Grants,5014,1811.00,Stannah Stairlifts Ltd,101623,22/08/2013,10190130
INSERTED DETAIL,Housing Revenue Account ,Carpeting,UMR06,R&M External Contractors,0100,35446.30,Steve Diston Contract Flooring,101668,01/08/2013,10189307
INSERTED DETAIL,Housing Revenue Account ,Carpeting,UMR06,R&M External Contractors,0100,35446.30,Steve Diston Contract Flooring,101668,29/08/2013,10190287
INSERTED DETAIL,Housing Revenue Account ,Unplanned Maintenance and Repair,UMR00,R&M External Contractors,0100,460.00,Steve Diston Contract Flooring,101668,29/08/2013,10190288
INSERTED DETAIL,Resources & Corporate Governance,Corporate Property R&M,CPA01,R&M External Contractors,0100,565.00,Secom Plc,101671,01/08/2013,10188588
INSERTED DETAIL,Resources & Corporate Governance,Corporate Property R&M,CPA01,R&M External Contractors,0100,-565.00,Secom Plc,101671,01/08/2013,10188796
INSERTED DETAIL,Resources & Corporate Governance,Handy man,WHM00,Materials,0303,1291.40,Travis Perkins Trading Co Ltd,101732,22/08/2013,10187426
INSERTED DETAIL,Resources & Corporate Governance,Handy man,WHM00,Materials,0303,1501.19,Travis Perkins Trading Co Ltd,101732,22/08/2013,10187442
INSERTED DETAIL,Resources & Corporate Governance,Handy man,WHM00,Materials,0303,1514.61,Travis Perkins Trading Co Ltd,101732,22/08/2013,10187499
INSERTED DETAIL,Resources & Corporate Governance,Handy man,WHM00,Materials,0303,567.47,Travis Perkins Trading Co Ltd,101732,22/08/2013,10187501
INSERTED DETAIL,Resources & Corporate Governance ,Domestic Waste Collection,WWC00,Vehicle Running Costs,0201,208.00,HI-Q Motorway,101736,01/08/2013,10188926
INSERTED DETAIL,Resources & Corporate Governance ,Trade Waste Collection,WWC01,Vehicle Running Costs,0201,1089.91,HI-Q Motorway,101736,01/08/2013,10188926
INSERTED DETAIL,Resources & Corporate Governance ,Domestic Waste Collection,WWC00,Vehicle Running Costs,0201,416.00,HI-Q Motorway,101736,01/08/2013,10188929
INSERTED DETAIL,Resources & Corporate Governance ,Trade Waste Collection,WWC01,Vehicle Running Costs,0201,208.00,HI-Q Motorway,101736,01/08/2013,10188929
INSERTED DETAIL,Resources & Corporate Governance ,Domestic Waste Collection,WWC00,Vehicle Running Costs,0201,705.88,HI-Q Motorway,101736,08/08/2013,10189091
INSERTED DETAIL,Resources & Corporate Governance ,Trade Waste Collection,WWC01,Vehicle Running Costs,0201,208.00,HI-Q Motorway,101736,08/08/2013,10189091
INSERTED DETAIL,Resources & Corporate Governance ,Domestic Waste Collection,WWC00,Vehicle Running Costs,0201,564.00,HI-Q Motorway,101736,15/08/2013,10189761
INSERTED DETAIL,Resources & Corporate Governance ,Trade Waste Collection,WWC01,Vehicle Running Costs,0201,257.98,HI-Q Motorway,101736,15/08/2013,10189761
INSERTED DETAIL,Resources & Corporate Governance ,Domestic Waste Collection,WWC00,Vehicle Running Costs,0201,800.00,HI-Q Motorway,101736,15/08/2013,10189762
INSERTED DETAIL,Resources & Corporate Governance ,Domestic Waste Collection,WWC00,Vehicle Running Costs,0201,980.00,HI-Q Motorway,101736,29/08/2013,10190414
INSERTED DETAIL,Resources & Corporate Governance ,Street Cleansing,WSC00,Vehicle Running Costs,0201,61.00,HI-Q Motorway,101736,29/08/2013,10190416
INSERTED DETAIL,Resources & Corporate Governance ,Domestic Waste Collection,WWC00,Vehicle Running Costs,0201,613.97,HI-Q Motorway,101736,29/08/2013,10190416
INSERTED DETAIL,Resources & Corporate Governance ,Trade Waste Collection,WWC01,Vehicle Running Costs,0201,208.00,HI-Q Motorway,101736,29/08/2013,10190416
INSERTED DETAIL,Resources & Corporate Governance,Handy man,WHM00,Vehicle Running Costs,0201,59.00,HI-Q Motorway,101736,29/08/2013,10190417
INSERTED DETAIL,Resources & Corporate Governance ,Domestic Waste Collection,WWC00,Vehicle Running Costs,0201,559.82,HI-Q Motorway,101736,29/08/2013,10190417
INSERTED DETAIL,Resources & Corporate Governance ,Trade Waste Collection,WWC01,Vehicle Running Costs,0201,266.98,HI-Q Motorway,101736,29/08/2013,10190417
INSERTED DETAIL,Resources & Corporate Governance,Handy man,WHM00,Vehicle Running Costs,0201,59.00,HI-Q Motorway,101736,29/08/2013,10190418
INSERTED DETAIL,Resources & Corporate Governance ,Domestic Waste Collection,WWC00,Vehicle Running Costs,0201,491.00,HI-Q Motorway,101736,29/08/2013,10190418
INSERTED DETAIL,Resources & Corporate Governance ,Trade Waste Collection,WWC01,Vehicle Running Costs,0201,196.00,HI-Q Motorway,101736,29/08/2013,10190418
INSERTED DETAIL,Resources & Corporate Governance ,Domestic Waste Collection,WWC00,Vehicle Running Costs,0201,1059.00,HI-Q Motorway,101736,29/08/2013,10190423
INSERTED DETAIL,Resources & Corporate Governance ,Street Cleansing,WSC00,Tools,0304,583.28,Tudor Environmental,101743,22/08/2013,10188216
INSERTED DETAIL,Resources & Corporate Governance ,TREE WORKS,WGM01,Materials,0303,221.42,Tudor Environmental,101743,08/08/2013,10189096
INSERTED DETAIL,Resources & Corporate Governance ,TREE WORKS,WGM01,Tools,0304,523.40,Tudor Environmental,101743,08/08/2013,10189096
INSERTED DETAIL,Resources & Corporate Governance ,TREE WORKS,WGM01,Personal Protective Clothing,0340,832.42,Tudor Environmental,101743,08/08/2013,10189096
INSERTED DETAIL,Resources & Corporate Governance ,Grounds Maintenance,WGM00,Tools,0304,956.08,Tudor Environmental,101743,15/08/2013,10189894
INSERTED DETAIL,Economy Development & Culture,Grants and Subscriptions,LGS00,Grants To Voluntary Organisations,0720,900.00,Wolston Parish Council,101852,15/08/2013,10189940
INSERTED DETAIL,Economy Development & Culture,Grants and Subscriptions,LGS00,Grants To Voluntary Organisations,0720,1000.00,Wolvey Parish Council,101853,15/08/2013,10189941
INSERTED DETAIL,Capital Program ,Parish and Rural Capital Spending,CGR03,Capital Grants,5014,10042.23,Wolvey Parish Council,101853,22/08/2013,10190040
INSERTED DETAIL,Housing Revenue Account ,Supervision and Management General,MAN00,Conference & Seminar Fees,0401,1500.00,West Midlands Employers,101880,29/08/2013,10190084
INSERTED DETAIL,Economy Development & Culture,Planning General/Income,PLN00,Consultancy Costs,0740,2700.00,Warwickshire County Council,101893,01/08/2013,10189155
INSERTED DETAIL,Resources & Corporate Governance ,Land Charges,LCH00,Payments to Other Local Authorities,0710,9228.30,Warwickshire County Council,101893,01/08/2013,10189238
INSERTED DETAIL,Resources & Corporate Governance ,General Financial Services,GFS00,Consultancy Costs,0740,953.88,Warwickshire County Council,101893,08/08/2013,10189710
INSERTED DETAIL,Economy Development & Culture,Decrim. of Car Parking on street parking,DPE02,Payments to Other Local Authorities,0710,130547.00,Warwickshire County Council,101893,15/08/2013,10189847
INSERTED DETAIL,Economy Development & Culture,Planning General/Income,PLN00,Consultancy Costs,0740,2530.00,Warwickshire County Council,101893,22/08/2013,10190185
INSERTED DETAIL,Resources & Corporate Governance,Handy man,WHM00,External Contractor & Operator,0742,4000.00,Darren Wilson Roofing Ltd,101911,08/08/2013,10187148
INSERTED DETAIL,Resources & Corporate Governance,Handy man,WHM00,External Contractor & Operator,0742,5060.00,Darren Wilson Roofing Ltd,101911,15/08/2013,10187149
INSERTED DETAIL,Capital Program ,Electric to Gas Conversions,HIM04,Capital Contract Payments,5000,5336.38,Adroit Services Ltd,101939,01/08/2013,10188602
INSERTED DETAIL,Capital Program ,Electric to Gas Conversions,HIM04,Capital Contract Payments,5000,5336.38,Adroit Services Ltd,101939,01/08/2013,10188871
INSERTED DETAIL,Capital Program ,Electric to Gas Conversions,HIM04,Capital Contract Payments,5000,5772.76,Adroit Services Ltd,101939,08/08/2013,10189474
INSERTED DETAIL,Housing Revenue Account ,Unplanned Maintenance and Repair,UMR00,R&M External Contractors,0100,896.43,Adroit Services Ltd,101939,08/08/2013,10189560
INSERTED DETAIL,Capital Program ,Electric to Gas Conversions,HIM04,Capital Contract Payments,5000,38.00,Adroit Services Ltd,101939,08/08/2013,10189560
INSERTED DETAIL,Housing Revenue Account ,Unplanned Maintenance and Repair,UMR00,R&M External Contractors,0100,713.90,Adroit Services Ltd,101939,15/08/2013,10190049
INSERTED DETAIL,Capital Program ,Electric to Gas Conversions,HIM04,Capital Contract Payments,5000,382.54,Adroit Services Ltd,101939,15/08/2013,10190049
INSERTED DETAIL,Capital Program ,Electric to Gas Conversions,HIM04,Capital Contract Payments,5000,5336.38,Adroit Services Ltd,101939,29/08/2013,10190182
INSERTED DETAIL,Capital Program ,Electric to Gas Conversions,HIM04,Capital Contract Payments,5000,5772.76,Adroit Services Ltd,101939,29/08/2013,10190183
INSERTED DETAIL,Capital Program ,Electric to Gas Conversions,HIM04,Capital Contract Payments,5000,5772.76,Adroit Services Ltd,101939,29/08/2013,10190184
INSERTED DETAIL,Housing Revenue Account ,Unplanned Maintenance and Repair,UMR00,R&M External Contractors,0100,1595.47,Adroit Services Ltd,101939,29/08/2013,10190322
INSERTED DETAIL,Housing Revenue Account ,Unplanned Maintenance and Repair,UMR00,R&M External Contractors,0100,1138.23,Adroit Services Ltd,101939,29/08/2013,10190323
INSERTED DETAIL,Capital Program ,Electric to Gas Conversions,HIM04,Capital Contract Payments,5000,206.00,Adroit Services Ltd,101939,29/08/2013,10190323
INSERTED DETAIL,Capital Program ,Electric to Gas Conversions,HIM04,Capital Contract Payments,5000,5772.76,Adroit Services Ltd,101939,29/08/2013,10190467
INSERTED DETAIL,Economy Development & Culture,Car Parks General,CPK01,Vehicle Running Costs,0201,107.97,TJS Self Drive Rugby,107992,22/08/2013,10187583
INSERTED DETAIL,Economy Development & Culture,Decrim. of Car Parking on street parking,DPE02,Vehicle Running Costs,0201,431.87,TJS Self Drive Rugby,107992,22/08/2013,10187583
INSERTED DETAIL,Resources & Corporate Governance ,Change Team,BTR50,Payments to Other Local Authorities,0710,15102.25,Nuneaton & Bedworth Borough Council,108060,08/08/2013,10189109
INSERTED DETAIL,Resources & Corporate Governance,Corporate Property R&M,CPA01,R&M External Contractors,0100,957.00,Ser-Tec Systems Ltd,108074,29/08/2013,10190158
INSERTED DETAIL,Resources & Corporate Governance,Corporate Property R&M,CPA01,R&M External Contractors,0100,8440.00,Ser-Tec Systems Ltd,108074,29/08/2013,10190251
INSERTED DETAIL,Resources & Corporate Governance ,Street Cleansing,WSC00,Vehicle Repair and Maintenance,0200,487.63,Scarab Sweepers Ltd,108252,01/08/2013,10189104
INSERTED DETAIL,Housing Revenue Account ,Supervision and Management General,MAN00,Cash Collection,0744,1131.72,Santander Corporate Bank,108369,29/08/2013,10189716
INSERTED DETAIL,Resources & Corporate Governance ,Central Telephone Service,TEL00,Telephone Expenses,0371,973.92,British Telecommunications PLC,108425,29/08/2013,10190512
INSERTED DETAIL,Capital Program ,Crematorium Project,BUR04,Capital Contract Payments,5000,325432.92,Daventry District Council,108940,22/08/2013,10190276
INSERTED DETAIL,Capital Program ,Crematorium Project,BUR04,Miscellaneous Capital Expenditure,5020,4960.00,Daventry District Council,108940,22/08/2013,10190276
INSERTED DETAIL,Capital Program ,Crematorium Project,BUR04,Capital Contract Payments,5000,120.59,Daventry District Council,108940,22/08/2013,10190277
INSERTED DETAIL,Capital Program ,Crematorium Project,BUR04,Miscellaneous Capital Expenditure,5020,8010.47,Daventry District Council,108940,22/08/2013,10190277
INSERTED DETAIL,Economy Development & Culture,Planning General/Income,PLN00,External Legal Costs,0741,1250.00,SATNAM SINGH CHOONGH,109271,15/08/2013,10189230
INSERTED DETAIL,Resources & Corporate Governance ,Garage Internal,WVR01,Materials,0303,33549.41,Watson Petroleum,110361,15/08/2013,10189751
INSERTED DETAIL,Carbon Management Plan,Carbon Management Plan,LCF01,Capital Contract Payments,5000,2449.00,Croxford Electrical Ltd,110451,15/08/2013,10189747
INSERTED DETAIL,Resources & Corporate Governance,Corporate Property R&M,CPA01,R&M External Contractors,0100,2086.56,Croxford Electrical Ltd,110451,15/08/2013,10189748
INSERTED DETAIL,Economy Development & Culture,Visitor Centre,VSC00,R&M External Contractors,0100,1000.00,Graham Ibbeson Sculpture Ltd,111295,01/08/2013,10189111
INSERTED DETAIL,Capital Program ,Purchase of Vehicles,VHC00,Miscellaneous Capital Expenditure,5020,3190.00,Vision Techniques (UK) LTD,111526,15/08/2013,10189433
INSERTED DETAIL,Capital Program ,Purchase of Vehicles,VHC00,Miscellaneous Capital Expenditure,5020,3190.00,Vision Techniques (UK) LTD,111526,15/08/2013,10189434
INSERTED DETAIL,Resources & Corporate Governance,Central Business Support Services,CSS15,Photocopying,0354,1751.97,Ricoh UK Limited,111532,01/08/2013,10189163
INSERTED DETAIL,Housing Revenue Account ,Carpeting,UMR06,R&M External Contractors,0100,2945.00,Dampco,111839,01/08/2013,10189229
INSERTED DETAIL,Resources & Corporate Governance ,Maintenance of Customer Services Systems,CIS21,Software Maintenance,0374,6607.06,Civica UK Ltd,112724,08/08/2013,10188903
INSERTED DETAIL,Resources & Corporate Governance ,Maintenance of Customer Services Systems,CIS21,Software Maintenance,0374,875.00,Civica UK Ltd,112724,08/08/2013,10189602
INSERTED DETAIL,Capital Program ,Replacement Sundry Income System,RSI00,Capital Contract Payments,5000,10500.00,Civica UK Ltd,112724,29/08/2013,10190101
INSERTED DETAIL,Resources & Corporate Governance ,Maintenance of Customer Services Systems,CIS21,Software Maintenance,0374,4070.00,Civica UK Ltd,112724,22/08/2013,10190107
INSERTED DETAIL,Capital Program ,Replacement Sundry Income System,RSI00,Capital Contract Payments,5000,5250.00,Civica UK Ltd,112724,29/08/2013,10190112
INSERTED DETAIL,Resources & Corporate Governance ,Domestic Waste Collection,WWC00,Agency Staff,0003,508.37,Extra Personnel Limited,112996,01/08/2013,10189209
INSERTED DETAIL,Resources & Corporate Governance ,Domestic Waste Collection,WWC00,Agency Staff,0003,508.37,Extra Personnel Limited,112996,15/08/2013,10189611
INSERTED DETAIL,Resources & Corporate Governance ,Domestic Waste Collection,WWC00,Agency Staff,0003,508.37,Extra Personnel Limited,112996,15/08/2013,10189892
INSERTED DETAIL,Resources & Corporate Governance ,Domestic Waste Collection,WWC00,Agency Staff,0003,508.37,Extra Personnel Limited,112996,29/08/2013,10190494
INSERTED DETAIL,Resources & Corporate Governance ,Domestic Waste Collection,WWC00,Agency Staff,0003,508.37,Extra Personnel Limited,112996,29/08/2013,10190495
INSERTED DETAIL,Sustainable Inclusive Communities,Housing Benefit Administration,HBA00,Agency Staff,0003,1032.75,Badenoch & Clark,113435,01/08/2013,10188941
INSERTED DETAIL,Sustainable Inclusive Communities,Housing Benefit Administration,HBA00,Agency Staff,0003,864.00,Badenoch & Clark,113435,01/08/2013,10189140
INSERTED DETAIL,Economy Development & Culture,Visitor Centre,VSC00,Events Tickets - Zero Rated,1405,1968.30,Catteralls Coach and Travel Services,113835,15/08/2013,10189909
INSERTED DETAIL,Economy Development & Culture,Visitor Centre,VSC00,Events Tickets - Standard Rated,1404,630.00,MLE Pyrotechnics Ltd,114004,22/08/2013,10189840
INSERTED DETAIL,Capital Program ,Fire Risk Assessment,HCE18,Capital Contract Payments,5000,6130.40,Temple Lifts Ltd,114738,01/08/2013,10188226
INSERTED DETAIL,Sustainable Inclusive Communities,Housing Options Team,HOT00,Rents,0140,490.00,Diamond House Hotel,115070,08/08/2013,10188112
INSERTED DETAIL,Sustainable Inclusive Communities,Housing Options Team,HOT00,Rents,0140,490.00,Diamond House Hotel,115070,08/08/2013,10188688
INSERTED DETAIL,Sustainable Inclusive Communities,Housing Options Team,HOT00,Rents,0140,490.00,Diamond House Hotel,115070,29/08/2013,10189718
INSERTED DETAIL,Resources & Corporate Governance ,Grounds Maintenance,WGM00,Contract Hire,0220,644.00,T H White Ltd,116311,08/08/2013,10189089
INSERTED DETAIL,Sustainable Environment ,Cemeteries General,CEM00,R&M External Contractors,0100,410.00,Lushglen,117749,01/08/2013,10189284
INSERTED DETAIL,Sustainable Environment ,Caldecott Park/Town Centre Area,PKS00,External Contractor & Operator,0742,100.00,Lushglen,117749,01/08/2013,10189284
INSERTED DETAIL,Sustainable Inclusive Communities,CL Grants,CGS00,Grants To Voluntary Organisations,0720,610.00,Mayday Trust,118067,15/08/2013,10189838
INSERTED DETAIL,Resources & Corporate Governance,Corporate Property Central Utilities,CPA02,Electricity,0130,9260.32,Southern Electric,118976,22/08/2013,10189927
INSERTED DETAIL,Housing Revenue Account ,Unplanned Maintenance and Repair,UMR00,R&M External Contractors,0100,534.30,Pro-Tec Security Systems,119999,08/08/2013,10189418
INSERTED DETAIL,Resources & Corporate Governance ,Toilet Cleaning,WBC01,Agency Staff,0003,142.40,G-Staff Ltd,120173,01/08/2013,10189274
INSERTED DETAIL,Resources & Corporate Governance ,Street Cleansing,WSC00,Agency Staff,0003,672.29,G-Staff Ltd,120173,01/08/2013,10189274
INSERTED DETAIL,Resources & Corporate Governance ,Domestic Waste Collection,WWC00,Agency Staff,0003,1366.63,G-Staff Ltd,120173,01/08/2013,10189274
INSERTED DETAIL,Resources & Corporate Governance ,Trade Waste Collection,WWC01,Agency Staff,0003,663.30,G-Staff Ltd,120173,01/08/2013,10189274
INSERTED DETAIL,Resources & Corporate Governance ,Street Cleansing,WSC00,Agency Staff,0003,628.24,G-Staff Ltd,120173,08/08/2013,10189432
INSERTED DETAIL,Resources & Corporate Governance ,Domestic Waste Collection,WWC00,Agency Staff,0003,1665.55,G-Staff Ltd,120173,08/08/2013,10189432
INSERTED DETAIL,Resources & Corporate Governance ,Trade Waste Collection,WWC01,Agency Staff,0003,122.27,G-Staff Ltd,120173,08/08/2013,10189432
INSERTED DETAIL,Resources & Corporate Governance ,Toilet Cleaning,WBC01,Agency Staff,0003,441.50,G-Staff Ltd,120173,15/08/2013,10189901
INSERTED DETAIL,Resources & Corporate Governance ,Street Cleansing,WSC00,Agency Staff,0003,224.33,G-Staff Ltd,120173,15/08/2013,10189901
INSERTED DETAIL,Resources & Corporate Governance ,Domestic Waste Collection,WWC00,Agency Staff,0003,1398.53,G-Staff Ltd,120173,15/08/2013,10189901
INSERTED DETAIL,Resources & Corporate Governance ,Trade Waste Collection,WWC01,Agency Staff,0003,585.59,G-Staff Ltd,120173,15/08/2013,10189901
INSERTED DETAIL,Resources & Corporate Governance ,Toilet Cleaning,WBC01,Agency Staff,0003,740.60,G-Staff Ltd,120173,22/08/2013,10190194
INSERTED DETAIL,Resources & Corporate Governance ,Street Cleansing,WSC00,Agency Staff,0003,180.40,G-Staff Ltd,120173,22/08/2013,10190194
INSERTED DETAIL,Resources & Corporate Governance ,Domestic Waste Collection,WWC00,Agency Staff,0003,1414.36,G-Staff Ltd,120173,22/08/2013,10190194
INSERTED DETAIL,Resources & Corporate Governance ,Trade Waste Collection,WWC01,Agency Staff,0003,585.59,G-Staff Ltd,120173,22/08/2013,10190194
INSERTED DETAIL,Resources & Corporate Governance ,Toilet Cleaning,WBC01,Agency Staff,0003,598.20,G-Staff Ltd,120173,29/08/2013,10190425
INSERTED DETAIL,Resources & Corporate Governance ,Domestic Waste Collection,WWC00,Agency Staff,0003,1999.97,G-Staff Ltd,120173,29/08/2013,10190425
INSERTED DETAIL,Resources & Corporate Governance ,Maintenance of Customer Services Systems,CIS21,Software Maintenance,0374,10099.46,Northgate Information Solutions UK Ltd,121606,01/08/2013,10188984
INSERTED DETAIL,Resources & Corporate Governance ,Maintenance of Customer Services Systems,CIS21,Software Maintenance,0374,7163.00,Northgate Information Solutions UK Ltd,121606,01/08/2013,10189002
INSERTED DETAIL,Resources & Corporate Governance ,Maintenance of Customer Services Systems,CIS21,Software Maintenance,0374,950.00,Northgate Information Solutions UK Ltd,121606,01/08/2013,10189195
INSERTED DETAIL,Resources & Corporate Governance ,Maintenance of Customer Services Systems,CIS21,Software Maintenance,0374,732.49,Northgate Information Solutions UK Ltd,121606,15/08/2013,10189951
INSERTED DETAIL,Resources & Corporate Governance ,Maintenance of Customer Services Systems,CIS21,Software Maintenance,0374,1831.25,Northgate Information Solutions UK Ltd,121606,22/08/2013,10190081
INSERTED DETAIL,Sustainable Environment ,Public Watercourses,LDR01,External Contractor & Operator,0742,668.44,Mr P Critchley,121703,29/08/2013,10189924
INSERTED DETAIL,Housing Revenue Account ,Supervision and Management General,MAN00,Training fees,0011,450.00,HQN Limited,122890,01/08/2013,10189198
INSERTED DETAIL,Housing Revenue Account ,Maintenance of Open Spaces,MOS00,External Contractor & Operator,0742,445.36,Brinklow Quarry,122921,15/08/2013,10189610
INSERTED DETAIL,Resources & Corporate Governance ,Highways,WHG00,External Contractor & Operator,0742,25.74,Brinklow Quarry,122921,15/08/2013,10189610
INSERTED DETAIL,Resources & Corporate Governance ,Central Telephone Service,TEL00,Telephone Expenses,0371,1278.28,Cable & Wireless/T/A Vodafone,123224,15/08/2013,10189866
INSERTED DETAIL,Resources & Corporate Governance ,Garage Internal,WVR01,Materials,0303,830.30,Shell U.K. Oil Products Limited,125672,08/08/2013,10189702
INSERTED DETAIL,Sustainable Environment,Regulatory Services,REG00,Software/Equipment Licences,0379,1061.47,Airwave Solutions Limited,126436,01/08/2013,10189158
INSERTED DETAIL,Sustainable Environment,Regulatory Services,REG00,Telephone Expenses,0371,490.00,EE Ltd t/a Orange PCS Limited,127916,22/08/2013,10188675
INSERTED DETAIL,Economy Development & Culture,Car Parks General,CPK01,Telephone Expenses,0371,91.00,EE Ltd t/a Orange PCS Limited,127916,01/08/2013,10188891
INSERTED DETAIL,Economy Development & Culture,Decrim. of Car Parking on street parking,DPE02,Telephone Expenses,0371,364.00,EE Ltd t/a Orange PCS Limited,127916,01/08/2013,10188891
INSERTED DETAIL,Resources & Corporate Governance,Handy man,WHM00,External Contractor & Operator,0742,589.30,M P Hudson & Son,129334,01/08/2013,10188860
INSERTED DETAIL,Resources & Corporate Governance,Handy man,WHM00,External Contractor & Operator,0742,560.00,M P Hudson & Son,129334,01/08/2013,10189182
INSERTED DETAIL,Resources & Corporate Governance,Handy man,WHM00,External Contractor & Operator,0742,775.00,M P Hudson & Son,129334,15/08/2013,10189713
INSERTED DETAIL,Resources & Corporate Governance,Handy man,WHM00,External Contractor & Operator,0742,825.00,M P Hudson & Son,129334,22/08/2013,10189926
INSERTED DETAIL,Resources & Corporate Governance,Handy man,WHM00,External Contractor & Operator,0742,707.50,M P Hudson & Son,129334,29/08/2013,10190476
INSERTED DETAIL,Capital Program ,Crematorium Project,BUR04,Capital Contract Payments,5000,701.00,Geldards LLP,129461,22/08/2013,10190274
INSERTED DETAIL,Resources & Corporate Governance ,Grounds Maintenance,WGM00,External Contractor & Operator,0742,553.00,Complete Weed Control,129556,29/08/2013,10190492
INSERTED DETAIL,Sustainable Environment ,Caldecott Park/Town Centre Area,PKS00,Materials,0303,250.00,C J L Gates and Engineering,130825,08/08/2013,10189654
INSERTED DETAIL,Sustainable Environment ,Caldecott Park/Town Centre Area,PKS00,External Contractor & Operator,0742,250.00,C J L Gates and Engineering,130825,08/08/2013,10189654
INSERTED DETAIL,Economy Development & Culture,Decrim. of Car Parking on street parking,DPE02,Cash Collection,0744,591.84,Jade Security Services Ltd,131711,08/08/2013,10187836
INSERTED DETAIL,Economy Development & Culture,Car Parks General,CPK01,Cash Collection,0744,964.48,Jade Security Services Ltd,131711,08/08/2013,10187837
INSERTED DETAIL,Economy Development & Culture,Car Parks General,CPK01,Cash Collection,0744,1090.52,Jade Security Services Ltd,131711,15/08/2013,10189829
INSERTED DETAIL,Economy Development & Culture,Decrim. of Car Parking on street parking,DPE02,Cash Collection,0744,591.84,Jade Security Services Ltd,131711,15/08/2013,10189870
INSERTED DETAIL,Economy Development & Culture,Car Parks General,CPK01,Cash Collection,0744,1019.28,Jade Security Services Ltd,131711,29/08/2013,10190319
INSERTED DETAIL,Economy Development & Culture,Decrim. of Car Parking on street parking,DPE02,Cash Collection,0744,728.84,Jade Security Services Ltd,131711,29/08/2013,10190320
INSERTED DETAIL,Economy Development & Culture,Car Parks General,CPK01,Training fees,0011,194.00,Alpha Parking Ltd,131720,08/08/2013,10188980
INSERTED DETAIL,Economy Development & Culture,Decrim. of Car Parking on street parking,DPE02,Training fees,0011,776.00,Alpha Parking Ltd,131720,08/08/2013,10188980
INSERTED DETAIL,Capital Program ,Disabled Facilities Grant,REN01,Capital Grants,5014,1998.00,D K Builders,131946,01/08/2013,10188987
INSERTED DETAIL,Capital Program ,Disabled Facilities Grant,REN01,Capital Grants,5014,6045.75,D K Builders,131946,08/08/2013,10189428
INSERTED DETAIL,Capital Program ,Disabled Facilities Grant,REN01,Capital Grants,5014,6045.75,D K Builders,131946,08/08/2013,10189744
INSERTED DETAIL,Capital Program ,Disabled Facilities Grant,REN01,Capital Grants,5014,6045.75,D K Builders,131946,22/08/2013,10190139
INSERTED DETAIL,Housing Revenue Account ,Unplanned Maintenance and Repair,UMR00,R&M External Contractors,0100,1736.46,Wilson Electrics,132051,08/08/2013,10189723
INSERTED DETAIL,Economy Development & Culture,Visitor Centre,VSC00,Events Tickets - Zero Rated,1405,2037.60,Rugby First Ltd - BID,133176,01/08/2013,10189019
INSERTED DETAIL,Economy Development & Culture,Town Centre CCTV and Management,TVM00,Other Agencies,0734,20115.98,Rugby First Ltd - BID,133176,15/08/2013,10189720
INSERTED DETAIL,Economy Development & Culture,Car Parks General,CPK01,Other Agencies,0734,168.30,Chipside Limited,133289,29/08/2013,10190555
INSERTED DETAIL,Economy Development & Culture,Decrim. of Car Parking on street parking,DPE02,Other Agencies,0734,673.20,Chipside Limited,133289,29/08/2013,10190555
INSERTED DETAIL,Resources & Corporate Governance ,Highways,WHG00,Materials,0303,643.50,Breedon Aggregates England Limited,133309,08/08/2013,10188071
INSERTED DETAIL,Resources & Corporate Governance,Handy man,WHM00,Materials,0303,150.00,Breedon Aggregates England Limited,133309,08/08/2013,10188071
INSERTED DETAIL,Resources & Corporate Governance ,Highways,WHG00,Materials,0303,1047.80,Breedon Aggregates England Limited,133309,15/08/2013,10189624
INSERTED DETAIL,Resources & Corporate Governance ,Human Resources Centralised Services,RES31,Training fees,0011,750.00,Emergency Planning College,133605,01/08/2013,10188881
INSERTED DETAIL,Capital Program ,Corporate Property Enhancements,CPE00,Capital Contract Payments,5000,12661.30,Sunfish Services Ltd,133886,22/08/2013,10187542
INSERTED DETAIL,Resources & Corporate Governance,Corporate Property R&M,CPA01,R&M External Contractors,0100,471.13,Sunfish Services Ltd,133886,29/08/2013,10190192
INSERTED DETAIL,Economy Development & Culture,Car Parks General,CPK01,Other Agencies,0734,560.00,24181 TEC,133967,01/08/2013,10189234
INSERTED DETAIL,Economy Development & Culture,Decrim. of Car Parking on street parking,DPE02,Other Agencies,0734,2240.00,24181 TEC,133967,01/08/2013,10189234
INSERTED DETAIL,Housing Revenue Account ,Avon Court AP,AGP02,Electricity,0130,635.41,Southern Electric,135653,13/08/2013,10188401
INSERTED DETAIL,Housing Revenue Account ,Dickinson Court AP,AGP03,Electricity,0130,194.38,Southern Electric,135653,13/08/2013,10188401
INSERTED DETAIL,Housing Revenue Account ,Duffy Place AP,AGP04,Electricity,0130,564.07,Southern Electric,135653,13/08/2013,10188401
INSERTED DETAIL,Housing Revenue Account ,Frederick Press Way AP,AGP06,Electricity,0130,881.28,Southern Electric,135653,13/08/2013,10188401
INSERTED DETAIL,Housing Revenue Account ,Mercer Court AP,AGP09,Electricity,0130,615.42,Southern Electric,135653,13/08/2013,10188401
INSERTED DETAIL,Housing Revenue Account ,Pettiver Crescent I AP,AGP10,Electricity,0130,764.76,Southern Electric,135653,13/08/2013,10188401
INSERTED DETAIL,Housing Revenue Account ,Sun Street/Windsor Street AP,AGP14,Electricity,0130,715.45,Southern Electric,135653,13/08/2013,10188401
INSERTED DETAIL,Housing Revenue Account ,Lesley Souter House AP,AGP16,Electricity,0130,1366.21,Southern Electric,135653,13/08/2013,10188401
INSERTED DETAIL,Housing Revenue Account ,Edward Court AP,AGP19,Electricity,0130,715.74,Southern Electric,135653,13/08/2013,10188401
INSERTED DETAIL,Housing Revenue Account ,Albert Square AP,AGP20,Electricity,0130,104.95,Southern Electric,135653,13/08/2013,10188401
INSERTED DETAIL,Housing Revenue Account ,Clare Court Site,AGP27,Electricity,0130,99.50,Southern Electric,135653,13/08/2013,10188401
INSERTED DETAIL,Housing Revenue Account ,Alexandra/James Court AP,AGP30,Electricity,0130,457.56,Southern Electric,135653,13/08/2013,10188401
INSERTED DETAIL,Housing Revenue Account ,Bennett Court/Warwick Road AP,AGP38,Electricity,0130,24.07,Southern Electric,135653,13/08/2013,10188401
INSERTED DETAIL,Housing Revenue Account ,Clifton Road AP,AGP41,Electricity,0130,78.76,Southern Electric,135653,13/08/2013,10188401
INSERTED DETAIL,Housing Revenue Account ,Featherbed Lane I AP,AGP45,Electricity,0130,525.11,Southern Electric,135653,13/08/2013,10188401
INSERTED DETAIL,Housing Revenue Account ,Fox Close AP,AGP47,Electricity,0130,198.51,Southern Electric,135653,13/08/2013,10188401
INSERTED DETAIL,Housing Revenue Account ,Jackson Road I AP,AGP53,Electricity,0130,56.73,Southern Electric,135653,13/08/2013,10188401
INSERTED DETAIL,Housing Revenue Account ,Lever Road I AP,AGP57,Electricity,0130,692.41,Southern Electric,135653,13/08/2013,10188401
INSERTED DETAIL,Housing Revenue Account ,The Kent AP,AGP67,Electricity,0130,101.74,Southern Electric,135653,13/08/2013,10188401
INSERTED DETAIL,Housing Revenue Account ,Victoria Street/Lawford Road AP,AGP68,Electricity,0130,34.50,Southern Electric,135653,13/08/2013,10188401
INSERTED DETAIL,Housing Revenue Account ,Pennington Street/Round Street AP,AGP72,Electricity,0130,366.73,Southern Electric,135653,13/08/2013,10188401
INSERTED DETAIL,Housing Revenue Account ,Control Centre CCTV,CCE01,Electricity,0130,1990.15,Southern Electric,135653,13/08/2013,10188401
INSERTED DETAIL,Housing Revenue Account ,Supervision and Management General,MAN00,Electricity,0130,214.15,Southern Electric,135653,13/08/2013,10188401
INSERTED DETAIL,Housing Revenue Account ,Multi-Storey Flats,MSF00,Electricity,0130,7101.62,Southern Electric,135653,13/08/2013,10188401
INSERTED DETAIL,Sustainable Inclusive Communities,Woodside Park,TVR00,Electricity,0130,4109.88,Southern Electric,135653,13/08/2013,10188401
INSERTED DETAIL,Housing Revenue Account ,Alfred Green Close AP,AGP01,Electricity,0130,585.87,Southern Electric,135653,29/08/2013,10189955
INSERTED DETAIL,Housing Revenue Account ,John Thwaites Close AP,AGP08,Electricity,0130,264.84,Southern Electric,135653,29/08/2013,10189955
INSERTED DETAIL,Housing Revenue Account ,Mercer Court AP,AGP09,Electricity,0130,85.46,Southern Electric,135653,29/08/2013,10189955
INSERTED DETAIL,Housing Revenue Account ,Stacey Court AP,AGP12,Electricity,0130,190.22,Southern Electric,135653,29/08/2013,10189955
INSERTED DETAIL,Housing Revenue Account ,Sun Street/Windsor Street AP,AGP14,Electricity,0130,21.51,Southern Electric,135653,29/08/2013,10189955
INSERTED DETAIL,Housing Revenue Account ,Tanser Court AP,AGP17,Electricity,0130,1153.20,Southern Electric,135653,29/08/2013,10189955
INSERTED DETAIL,Housing Revenue Account ,Eliot Court AP,AGP25,Electricity,0130,286.55,Southern Electric,135653,29/08/2013,10189955
INSERTED DETAIL,Housing Revenue Account ,Hirst Close AP,AGP33,Electricity,0130,131.49,Southern Electric,135653,29/08/2013,10189955
INSERTED DETAIL,Housing Revenue Account ,Assheton Close AP,AGP36,Electricity,0130,101.22,Southern Electric,135653,29/08/2013,10189955
INSERTED DETAIL,Housing Revenue Account ,Deepmore Road/Lytham Road AP,AGP42,Electricity,0130,465.09,Southern Electric,135653,29/08/2013,10189955
INSERTED DETAIL,Housing Revenue Account ,Edmondson Close Dunchurch AP,AGP44,Electricity,0130,288.14,Southern Electric,135653,29/08/2013,10189955
INSERTED DETAIL,Housing Revenue Account ,Harold Cox Place AP,AGP51,Electricity,0130,149.35,Southern Electric,135653,29/08/2013,10189955
INSERTED DETAIL,Housing Revenue Account ,Miscellaneous AP,AGP99,Electricity,0130,18.56,Southern Electric,135653,29/08/2013,10189955
INSERTED DETAIL,Housing Revenue Account ,Supervision and Management General,MAN00,Electricity,0130,23.57,Southern Electric,135653,29/08/2013,10189955
INSERTED DETAIL,Resources & Corporate Governance ,Domestic Waste Collection,WWC00,Vehicle Repair and Maintenance,0200,457.72,Heil Farid European Company Ltd,137390,01/08/2013,10188809
INSERTED DETAIL,Resources & Corporate Governance ,Domestic Waste Collection,WWC00,Vehicle Repair and Maintenance,0200,480.00,Heil Farid European Company Ltd,137390,01/08/2013,10188811
INSERTED DETAIL,Resources & Corporate Governance ,Domestic Waste Collection,WWC00,Vehicle Running Costs,0201,705.00,Heil Farid European Company Ltd,137390,22/08/2013,10190067
INSERTED DETAIL,Resources & Corporate Governance ,Domestic Waste Collection,WWC00,Vehicle Running Costs,0201,705.00,Heil Farid European Company Ltd,137390,22/08/2013,10190068
INSERTED DETAIL,Resources & Corporate Governance ,Street Cleansing,WSC00,Materials,0303,698.60,Danline International Ltd,137588,15/08/2013,10189205
INSERTED DETAIL,Resources & Corporate Governance ,"Communications, Consultation and Information Team",BTR20,Publicity & Marketing,0377,500.00,ProgrammeMaster Ltd,138019,15/08/2013,10189715
INSERTED DETAIL,Housing Revenue Account ,Asbestos Surveys,UMR05,R&M External Contractors,0100,2860.00,Rider Levett Bucknall UK Ltd,139918,29/08/2013,10190581
INSERTED DETAIL,Capital Program ,Electric to Gas Conversions,HIM04,Capital Contract Payments,5000,130.00,Rider Levett Bucknall UK Ltd,139918,29/08/2013,10190581
INSERTED DETAIL,Economy Development & Culture,Planning General/Income,PLN00,Consultancy Costs,0740,500.00,P Rhodes,140076,01/08/2013,10189237
INSERTED DETAIL,Resources & Corporate Governance ,Grounds Maintenance,WGM00,External Contractor & Operator,0742,480.00,D J Whitlock Plant Hire,140156,15/08/2013,10188940
INSERTED DETAIL,Resources & Corporate Governance ,Domestic Waste Collection,WWC00,Vehicle Repair and Maintenance,0200,759.23,Midlands Truck & Van Ltd,140322,08/08/2013,10189057
INSERTED DETAIL,Resources & Corporate Governance ,Customer and Information Strategy,CIS10,Telephone Expenses,0371,750.63,Zen Internet Ltd,141612,01/08/2013,10188522
INSERTED DETAIL,Resources & Corporate Governance ,Council Tax and NNDR Collection,CTX01,Software Maintenance,0374,21.27,Zen Internet Ltd,141612,01/08/2013,10188522
INSERTED DETAIL,Resources & Corporate Governance ,Human Resources Centralised Services,RES31,Training fees,0011,3999.00,Hbinfo Ltd,144002,29/08/2013,10189891
INSERTED DETAIL,Sustainable Environment ,Violence,CAD01,Development Activities,0450,670.00,The Professional Promotion Co Ltd,144136,15/08/2013,10189965
INSERTED DETAIL,Sustainable Environment ,Caldecott Park/Town Centre Area,PKS00,R&M External Contractors,0100,1005.00,Fountains Direct Limited,144391,01/08/2013,10188985
INSERTED DETAIL,Resources & Corporate Governance ,Garage Internal,WVR01,Materials,0303,979.75,FST,144461,01/08/2013,10188775
INSERTED DETAIL,Economy Development & Culture,Car Parks General,CPK01,Other Agencies,0734,129.96,PATROL,144963,08/08/2013,10187524
INSERTED DETAIL,Economy Development & Culture,Decrim. of Car Parking on street parking,DPE02,Other Agencies,0734,519.84,PATROL,144963,08/08/2013,10187524
INSERTED DETAIL,Housing Revenue Account ,Control Centre CCTV,CCE01,External Contractor & Operator,0742,15574.92,Securitas Security Personnel Ltd,145079,15/08/2013,10189848
INSERTED DETAIL,Housing Revenue Account ,Property Maintenance,MAN23,Agency Staff,0003,615.38,James Andrews Recruitment Solutions Ltd,145100,01/08/2013,10189025
INSERTED DETAIL,Sustainable Inclusive Communities,Housing Options Team,HOT00,Agency Staff,0003,619.48,James Andrews Recruitment Solutions Ltd,145100,08/08/2013,10189143
INSERTED DETAIL,Sustainable Inclusive Communities,Housing Options Team,HOT00,Agency Staff,0003,615.38,James Andrews Recruitment Solutions Ltd,145100,08/08/2013,10189144
INSERTED DETAIL,Housing Revenue Account ,Property Maintenance,MAN23,Agency Staff,0003,885.00,James Andrews Recruitment Solutions Ltd,145100,01/08/2013,10189151
INSERTED DETAIL,Housing Revenue Account ,Property Maintenance,MAN23,Agency Staff,0003,1218.00,James Andrews Recruitment Solutions Ltd,145100,01/08/2013,10189152
INSERTED DETAIL,Housing Revenue Account ,Property Maintenance,MAN23,Agency Staff,0003,1218.00,James Andrews Recruitment Solutions Ltd,145100,01/08/2013,10189153
INSERTED DETAIL,Housing Revenue Account ,Property Maintenance,MAN23,Agency Staff,0003,930.00,James Andrews Recruitment Solutions Ltd,145100,01/08/2013,10189161
INSERTED DETAIL,Sustainable Inclusive Communities,Housing Options Team,HOT00,Agency Staff,0003,627.68,James Andrews Recruitment Solutions Ltd,145100,15/08/2013,10189746
INSERTED DETAIL,Housing Revenue Account ,Property Maintenance,MAN23,Agency Staff,0003,840.00,James Andrews Recruitment Solutions Ltd,145100,22/08/2013,10189938
INSERTED DETAIL,Housing Revenue Account ,Property Maintenance,MAN23,Agency Staff,0003,960.00,James Andrews Recruitment Solutions Ltd,145100,22/08/2013,10189939
INSERTED DETAIL,Resources & Corporate Governance ,General Administration,WAD00,Training fees,0011,950.00,Keith Cook Training Services,145120,22/08/2013,10190216
INSERTED DETAIL,Capital Program ,Open Spaces Refurbishment,LEI08,Capital Contract Payments,5000,2902.92,Logic Street & Park Scene,145331,01/08/2013,10189199
INSERTED DETAIL,Resources & Corporate Governance ,Grounds Maintenance,WGM00,Agency Staff,0003,193.20,Blue Arrow Limited,145492,01/08/2013,10188708
INSERTED DETAIL,Resources & Corporate Governance,Handy man,WHM00,Agency Staff,0003,991.33,Blue Arrow Limited,145492,01/08/2013,10188708
INSERTED DETAIL,Resources & Corporate Governance ,Street Cleansing,WSC00,Agency Staff,0003,893.85,Blue Arrow Limited,145492,01/08/2013,10188708
INSERTED DETAIL,Resources & Corporate Governance ,Domestic Waste Collection,WWC00,Agency Staff,0003,142.13,Blue Arrow Limited,145492,01/08/2013,10188708
INSERTED DETAIL,Resources & Corporate Governance ,Trade Waste Collection,WWC01,Agency Staff,0003,201.45,Blue Arrow Limited,145492,01/08/2013,10188708
INSERTED DETAIL,Resources & Corporate Governance ,Grounds Maintenance,WGM00,Agency Staff,0003,128.80,Blue Arrow Limited,145492,01/08/2013,10189083
INSERTED DETAIL,Resources & Corporate Governance,Handy man,WHM00,Agency Staff,0003,1070.47,Blue Arrow Limited,145492,01/08/2013,10189083
INSERTED DETAIL,Resources & Corporate Governance ,Street Cleansing,WSC00,Agency Staff,0003,1201.80,Blue Arrow Limited,145492,01/08/2013,10189083
INSERTED DETAIL,Resources & Corporate Governance ,Domestic Waste Collection,WWC00,Agency Staff,0003,649.29,Blue Arrow Limited,145492,01/08/2013,10189083
INSERTED DETAIL,Resources & Corporate Governance ,Trade Waste Collection,WWC01,Agency Staff,0003,32.75,Blue Arrow Limited,145492,01/08/2013,10189083
INSERTED DETAIL,Resources & Corporate Governance ,Grounds Maintenance,WGM00,Agency Staff,0003,322.00,Blue Arrow Limited,145492,15/08/2013,10189670
INSERTED DETAIL,Resources & Corporate Governance,Handy man,WHM00,Agency Staff,0003,1624.44,Blue Arrow Limited,145492,15/08/2013,10189670
INSERTED DETAIL,Resources & Corporate Governance ,Street Cleansing,WSC00,Agency Staff,0003,1164.28,Blue Arrow Limited,145492,15/08/2013,10189670
INSERTED DETAIL,Resources & Corporate Governance ,Domestic Waste Collection,WWC00,Agency Staff,0003,706.80,Blue Arrow Limited,145492,15/08/2013,10189670
INSERTED DETAIL,Resources & Corporate Governance ,Grounds Maintenance,WGM00,Agency Staff,0003,322.00,Blue Arrow Limited,145492,15/08/2013,10189997
INSERTED DETAIL,Resources & Corporate Governance,Handy man,WHM00,Agency Staff,0003,1766.57,Blue Arrow Limited,145492,15/08/2013,10189997
INSERTED DETAIL,Resources & Corporate Governance ,Street Cleansing,WSC00,Agency Staff,0003,900.31,Blue Arrow Limited,145492,15/08/2013,10189997
INSERTED DETAIL,Resources & Corporate Governance ,Domestic Waste Collection,WWC00,Agency Staff,0003,1018.41,Blue Arrow Limited,145492,15/08/2013,10189997
INSERTED DETAIL,Resources & Corporate Governance ,General Administration,WAD00,Agency Staff,0003,395.63,Blue Arrow Limited,145492,22/08/2013,10190234
INSERTED DETAIL,Resources & Corporate Governance ,Grounds Maintenance,WGM00,Agency Staff,0003,317.98,Blue Arrow Limited,145492,22/08/2013,10190234
INSERTED DETAIL,Resources & Corporate Governance,Handy man,WHM00,Agency Staff,0003,1310.28,Blue Arrow Limited,145492,22/08/2013,10190234
INSERTED DETAIL,Resources & Corporate Governance ,Street Cleansing,WSC00,Agency Staff,0003,969.60,Blue Arrow Limited,145492,22/08/2013,10190234
INSERTED DETAIL,Resources & Corporate Governance ,Domestic Waste Collection,WWC00,Agency Staff,0003,509.02,Blue Arrow Limited,145492,22/08/2013,10190234
INSERTED DETAIL,Resources & Corporate Governance ,Legal Services,DEM20,External Legal Costs,0741,2000.00,HMCTS,145933,15/08/2013,10189842
INSERTED DETAIL,Capital Program ,Disabled Facilities Grant,REN01,Capital Grants,5014,955.00,Inhouse Renovations,145963,22/08/2013,10190140
INSERTED DETAIL,Resources & Corporate Governance ,Safety and Resilience,EPL00,Training fees,0011,750.00,Serco Ltd,146371,22/08/2013,10190252
INSERTED DETAIL,Capital Program ,Open Spaces Refurbishment,LEI08,Capital Contract Payments,5000,13675.00,Larkin Engineering Enterprises LtdT/A Larkin Street Products,146442,01/08/2013,10188906
INSERTED DETAIL,Resources & Corporate Governance,Handy man,WHM00,External Contractor & Operator,0742,1300.00,Stanair Industrial Services Ltd,146499,01/08/2013,10188403
INSERTED DETAIL,Resources & Corporate Governance ,Legal Services,DEM20,Conference & Seminar Fees,0401,500.00,MBL Seminars,146589,15/08/2013,10187909
INSERTED DETAIL,Sustainable Environment ,Caldecott Park/Town Centre Area,PKS00,R&M External Contractors,0100,2177.50,UVS Sign & Design Ltd,146676,15/08/2013,10190032
INSERTED DETAIL,Resources & Corporate Governance,Handy man,WHM00,External Contractor & Operator,0742,1310.00,Mick Brown Plastering,146699,08/08/2013,10187594
INSERTED DETAIL,Resources & Corporate Governance,Handy man,WHM00,External Contractor & Operator,0742,875.00,Mick Brown Plastering,146699,01/08/2013,10188087
INSERTED DETAIL,Resources & Corporate Governance,Handy man,WHM00,External Contractor & Operator,0742,627.00,Mick Brown Plastering,146699,29/08/2013,10189780
INSERTED DETAIL,Resources & Corporate Governance,Handy man,WHM00,External Contractor & Operator,0742,501.00,Mick Brown Plastering,146699,29/08/2013,10189781
INSERTED DETAIL,Economy Development & Culture,Building Control Services,BCS00,Postage & Distribution,0370,0.93,TNT Post Midlands Ltd,146983,29/08/2013,10188181
INSERTED DETAIL,Economy Development & Culture,Building Control Services Non-Fee Earning Account,BCS01,Postage & Distribution,0370,0.93,TNT Post Midlands Ltd,146983,29/08/2013,10188181
INSERTED DETAIL,Economy Development & Culture,Building Regulation Fee Earning Account,BCS99,Postage & Distribution,0370,16.69,TNT Post Midlands Ltd,146983,29/08/2013,10188181
INSERTED DETAIL,Resources & Corporate Governance,Central Business Support Services,CSS15,Postage & Distribution,0370,34.28,TNT Post Midlands Ltd,146983,29/08/2013,10188181
INSERTED DETAIL,Resources & Corporate Governance ,Council Tax and NNDR Collection,CTX01,Postage & Distribution,0370,210.41,TNT Post Midlands Ltd,146983,29/08/2013,10188181
INSERTED DETAIL,Resources & Corporate Governance ,Electoral Registration,ERG00,Postage & Distribution,0370,13.46,TNT Post Midlands Ltd,146983,29/08/2013,10188181
INSERTED DETAIL,Sustainable Inclusive Communities,Housing Benefit Administration,HBA00,Postage & Distribution,0370,176.59,TNT Post Midlands Ltd,146983,29/08/2013,10188181
INSERTED DETAIL,Housing Revenue Account ,Supervision and Management General,MAN00,Postage & Distribution,0370,106.19,TNT Post Midlands Ltd,146983,29/08/2013,10188181
INSERTED DETAIL,Resources & Corporate Governance ,General Administration,WAD00,Postage & Distribution,0370,23.90,TNT Post Midlands Ltd,146983,29/08/2013,10188181
INSERTED DETAIL,Economy Development & Culture,Art Gallery and Museum,AGM00,Postage & Distribution,0370,131.85,TNT Post Midlands Ltd,146983,29/08/2013,10188604
INSERTED DETAIL,Economy Development & Culture,Building Control Services,BCS00,Postage & Distribution,0370,0.86,TNT Post Midlands Ltd,146983,29/08/2013,10188604
INSERTED DETAIL,Economy Development & Culture,Building Control Services Non-Fee Earning Account,BCS01,Postage & Distribution,0370,0.86,TNT Post Midlands Ltd,146983,29/08/2013,10188604
INSERTED DETAIL,Economy Development & Culture,Building Regulation Fee Earning Account,BCS99,Postage & Distribution,0370,15.55,TNT Post Midlands Ltd,146983,29/08/2013,10188604
INSERTED DETAIL,Resources & Corporate Governance,Central Business Support Services,CSS15,Postage & Distribution,0370,96.71,TNT Post Midlands Ltd,146983,29/08/2013,10188604
INSERTED DETAIL,Resources & Corporate Governance ,Council Tax and NNDR Collection,CTX01,Postage & Distribution,0370,173.90,TNT Post Midlands Ltd,146983,29/08/2013,10188604
INSERTED DETAIL,Resources & Corporate Governance ,Electoral Registration,ERG00,Postage & Distribution,0370,32.68,TNT Post Midlands Ltd,146983,29/08/2013,10188604
INSERTED DETAIL,Sustainable Inclusive Communities,Housing Benefit Administration,HBA00,Postage & Distribution,0370,119.54,TNT Post Midlands Ltd,146983,29/08/2013,10188604
INSERTED DETAIL,Housing Revenue Account ,Supervision and Management General,MAN00,Postage & Distribution,0370,144.52,TNT Post Midlands Ltd,146983,29/08/2013,10188604
INSERTED DETAIL,Resources & Corporate Governance ,General Administration,WAD00,Postage & Distribution,0370,17.35,TNT Post Midlands Ltd,146983,29/08/2013,10188604
INSERTED DETAIL,Economy Development & Culture,Art Gallery and Museum,AGM00,Postage & Distribution,0370,0.30,TNT Post Midlands Ltd,146983,29/08/2013,10188971
INSERTED DETAIL,Economy Development & Culture,Building Control Services,BCS00,Postage & Distribution,0370,0.68,TNT Post Midlands Ltd,146983,29/08/2013,10188971
INSERTED DETAIL,Economy Development & Culture,Building Control Services Non-Fee Earning Account,BCS01,Postage & Distribution,0370,0.68,TNT Post Midlands Ltd,146983,29/08/2013,10188971
INSERTED DETAIL,Economy Development & Culture,Building Regulation Fee Earning Account,BCS99,Postage & Distribution,0370,12.18,TNT Post Midlands Ltd,146983,29/08/2013,10188971
INSERTED DETAIL,Resources & Corporate Governance,Central Business Support Services,CSS15,Postage & Distribution,0370,31.66,TNT Post Midlands Ltd,146983,29/08/2013,10188971
INSERTED DETAIL,Resources & Corporate Governance ,Council Tax and NNDR Collection,CTX01,Postage & Distribution,0370,200.77,TNT Post Midlands Ltd,146983,29/08/2013,10188971
INSERTED DETAIL,Resources & Corporate Governance ,Electoral Registration,ERG00,Postage & Distribution,0370,0.90,TNT Post Midlands Ltd,146983,29/08/2013,10188971
INSERTED DETAIL,Sustainable Inclusive Communities,Housing Benefit Administration,HBA00,Postage & Distribution,0370,117.57,TNT Post Midlands Ltd,146983,29/08/2013,10188971
INSERTED DETAIL,Housing Revenue Account ,Supervision and Management General,MAN00,Postage & Distribution,0370,191.12,TNT Post Midlands Ltd,146983,29/08/2013,10188971
INSERTED DETAIL,Resources & Corporate Governance ,General Administration,WAD00,Postage & Distribution,0370,5.73,TNT Post Midlands Ltd,146983,29/08/2013,10188971
INSERTED DETAIL,Economy Development & Culture,Art Gallery and Museum,AGM00,Postage & Distribution,0370,1.22,TNT Post Midlands Ltd,146983,29/08/2013,10189471
INSERTED DETAIL,Economy Development & Culture,Building Control Services,BCS00,Postage & Distribution,0370,1.14,TNT Post Midlands Ltd,146983,29/08/2013,10189471
INSERTED DETAIL,Economy Development & Culture,Building Control Services Non-Fee Earning Account,BCS01,Postage & Distribution,0370,1.14,TNT Post Midlands Ltd,146983,29/08/2013,10189471
INSERTED DETAIL,Economy Development & Culture,Building Regulation Fee Earning Account,BCS99,Postage & Distribution,0370,20.57,TNT Post Midlands Ltd,146983,29/08/2013,10189471
INSERTED DETAIL,Resources & Corporate Governance,Central Business Support Services,CSS15,Postage & Distribution,0370,41.39,TNT Post Midlands Ltd,146983,29/08/2013,10189471
INSERTED DETAIL,Resources & Corporate Governance ,Council Tax and NNDR Collection,CTX01,Postage & Distribution,0370,141.65,TNT Post Midlands Ltd,146983,29/08/2013,10189471
INSERTED DETAIL,Resources & Corporate Governance ,Electoral Registration,ERG00,Postage & Distribution,0370,9.40,TNT Post Midlands Ltd,146983,29/08/2013,10189471
INSERTED DETAIL,Sustainable Inclusive Communities,Housing Benefit Administration,HBA00,Postage & Distribution,0370,153.31,TNT Post Midlands Ltd,146983,29/08/2013,10189471
INSERTED DETAIL,Housing Revenue Account ,Supervision and Management General,MAN00,Postage & Distribution,0370,1206.98,TNT Post Midlands Ltd,146983,29/08/2013,10189471
INSERTED DETAIL,Resources & Corporate Governance ,General Administration,WAD00,Postage & Distribution,0370,14.59,TNT Post Midlands Ltd,146983,29/08/2013,10189471
INSERTED DETAIL,Economy Development & Culture,Building Control Services,BCS00,Postage & Distribution,0370,0.95,TNT Post Midlands Ltd,146983,29/08/2013,10189810
INSERTED DETAIL,Economy Development & Culture,Building Control Services Non-Fee Earning Account,BCS01,Postage & Distribution,0370,0.95,TNT Post Midlands Ltd,146983,29/08/2013,10189810
INSERTED DETAIL,Economy Development & Culture,Building Regulation Fee Earning Account,BCS99,Postage & Distribution,0370,17.01,TNT Post Midlands Ltd,146983,29/08/2013,10189810
INSERTED DETAIL,Resources & Corporate Governance,Central Business Support Services,CSS15,Postage & Distribution,0370,39.67,TNT Post Midlands Ltd,146983,29/08/2013,10189810
INSERTED DETAIL,Resources & Corporate Governance ,Council Tax and NNDR Collection,CTX01,Postage & Distribution,0370,204.13,TNT Post Midlands Ltd,146983,29/08/2013,10189810
INSERTED DETAIL,Resources & Corporate Governance ,Electoral Registration,ERG00,Postage & Distribution,0370,113.23,TNT Post Midlands Ltd,146983,29/08/2013,10189810
INSERTED DETAIL,Sustainable Inclusive Communities,Housing Benefit Administration,HBA00,Postage & Distribution,0370,160.43,TNT Post Midlands Ltd,146983,29/08/2013,10189810
INSERTED DETAIL,Housing Revenue Account ,Supervision and Management General,MAN00,Postage & Distribution,0370,69.15,TNT Post Midlands Ltd,146983,29/08/2013,10189810
INSERTED DETAIL,Economy Development & Culture,Visitor Centre,VSC00,Postage & Distribution,0370,0.32,TNT Post Midlands Ltd,146983,29/08/2013,10189810
INSERTED DETAIL,Resources & Corporate Governance ,General Administration,WAD00,Postage & Distribution,0370,4.47,TNT Post Midlands Ltd,146983,29/08/2013,10189810
INSERTED DETAIL,Economy Development & Culture,Art Gallery and Museum,AGM00,Postage & Distribution,0370,0.31,TNT Post Midlands Ltd,146983,29/08/2013,10190053
INSERTED DETAIL,Economy Development & Culture,Building Control Services,BCS00,Postage & Distribution,0370,1.02,TNT Post Midlands Ltd,146983,29/08/2013,10190053
INSERTED DETAIL,Economy Development & Culture,Building Control Services Non-Fee Earning Account,BCS01,Postage & Distribution,0370,1.02,TNT Post Midlands Ltd,146983,29/08/2013,10190053
INSERTED DETAIL,Economy Development & Culture,Building Regulation Fee Earning Account,BCS99,Postage & Distribution,0370,18.39,TNT Post Midlands Ltd,146983,29/08/2013,10190053
INSERTED DETAIL,Resources & Corporate Governance,Central Business Support Services,CSS15,Postage & Distribution,0370,25.75,TNT Post Midlands Ltd,146983,29/08/2013,10190053
INSERTED DETAIL,Resources & Corporate Governance ,Council Tax and NNDR Collection,CTX01,Postage & Distribution,0370,221.04,TNT Post Midlands Ltd,146983,29/08/2013,10190053
INSERTED DETAIL,Resources & Corporate Governance ,Electoral Registration,ERG00,Postage & Distribution,0370,28.29,TNT Post Midlands Ltd,146983,29/08/2013,10190053
INSERTED DETAIL,Sustainable Inclusive Communities,Housing Benefit Administration,HBA00,Postage & Distribution,0370,179.38,TNT Post Midlands Ltd,146983,29/08/2013,10190053
INSERTED DETAIL,Housing Revenue Account ,Supervision and Management General,MAN00,Postage & Distribution,0370,140.64,TNT Post Midlands Ltd,146983,29/08/2013,10190053
INSERTED DETAIL,Resources & Corporate Governance ,General Administration,WAD00,Postage & Distribution,0370,7.71,TNT Post Midlands Ltd,146983,29/08/2013,10190053
INSERTED DETAIL,Economy Development & Culture,Building Control Services,BCS00,Postage & Distribution,0370,0.93,TNT Post Midlands Ltd,146983,29/08/2013,10190268
INSERTED DETAIL,Economy Development & Culture,Building Control Services Non-Fee Earning Account,BCS01,Postage & Distribution,0370,0.93,TNT Post Midlands Ltd,146983,29/08/2013,10190268
INSERTED DETAIL,Economy Development & Culture,Building Regulation Fee Earning Account,BCS99,Postage & Distribution,0370,16.76,TNT Post Midlands Ltd,146983,29/08/2013,10190268
INSERTED DETAIL,Resources & Corporate Governance,Central Business Support Services,CSS15,Postage & Distribution,0370,34.65,TNT Post Midlands Ltd,146983,29/08/2013,10190268
INSERTED DETAIL,Resources & Corporate Governance ,Council Tax and NNDR Collection,CTX01,Postage & Distribution,0370,260.29,TNT Post Midlands Ltd,146983,29/08/2013,10190268
INSERTED DETAIL,Resources & Corporate Governance ,Electoral Registration,ERG00,Postage & Distribution,0370,9.48,TNT Post Midlands Ltd,146983,29/08/2013,10190268
INSERTED DETAIL,Sustainable Inclusive Communities,Housing Benefit Administration,HBA00,Postage & Distribution,0370,150.48,TNT Post Midlands Ltd,146983,29/08/2013,10190268
INSERTED DETAIL,Housing Revenue Account ,Supervision and Management General,MAN00,Postage & Distribution,0370,33.46,TNT Post Midlands Ltd,146983,29/08/2013,10190268
INSERTED DETAIL,Resources & Corporate Governance ,General Administration,WAD00,Postage & Distribution,0370,2.37,TNT Post Midlands Ltd,146983,29/08/2013,10190268
INSERTED DETAIL,Capital Program ,Corporate Property Enhancements,CPE00,Capital Contract Payments,5000,88997.80,General Asphalte Company,147047,29/08/2013,10190366
INSERTED DETAIL,Resources & Corporate Governance ,Garage Internal,WVR01,Materials,0303,534.00,Skyward Graphics Limited,147050,08/08/2013,10189332
INSERTED DETAIL,Resources & Corporate Governance,Handy man,WHM00,External Contractor & Operator,0742,2907.11,Intelligent Disabled Solutions Ltd,147081,15/08/2013,10189159
INSERTED DETAIL,Resources & Corporate Governance,Handy man,WHM00,External Contractor & Operator,0742,3240.16,Intelligent Disabled Solutions Ltd,147081,15/08/2013,10189160
INSERTED DETAIL,Resources & Corporate Governance,Handy man,WHM00,External Contractor & Operator,0742,3196.32,Intelligent Disabled Solutions Ltd,147081,15/08/2013,10189216
INSERTED DETAIL,Resources & Corporate Governance ,General Administration,WAD00,Stationery Supplies,0350,495.00,William Pollard & Co Ltd,147091,29/08/2013,10190407
INSERTED DETAIL,Resources & Corporate Governance,Corporate Property R&M,CPA01,R&M External Contractors,0100,1194.00,OCS Safety (National Cradle Maintenance),147094,29/08/2013,10190336
INSERTED DETAIL,Resources & Corporate Governance ,IT Procurement,CMP00,IT Capital Expenditure,5025,1938.74,Sapphire Technologies Ltd,147128,01/08/2013,10188899
INSERTED DETAIL,Resources & Corporate Governance ,Domestic Waste Collection,WWC00,External Contractor & Operator,0742,450.00,James Baxter Haulage Ltd,147159,01/08/2013,10188508
INSERTED DETAIL,Resources & Corporate Governance ,Domestic Waste Collection,WWC00,External Contractor & Operator,0742,900.00,James Baxter Haulage Ltd,147159,29/08/2013,10190283
INSERTED DETAIL,Capital Program ,Queen's Diamond Jubilee Leisure Centre Project,LEI03,Capital Contract Payments,5000,12800.00,B3 Architects,147190,15/08/2013,10189410
INSERTED DETAIL,Resources & Corporate Governance,Handy man,WHM00,Materials,0303,1001.24,Claddex Ltd,147308,29/08/2013,10190275
INSERTED DETAIL,Resources & Corporate Governance,Handy man,WHM00,Materials,0303,675.41,Edwards Buildbase,147387,08/08/2013,10187761
INSERTED DETAIL,Resources & Corporate Governance ,"Communications, Consultation and Information Team",BTR20,Publicity & Marketing,0377,3300.00,Leicester Football Club Plc,147389,08/08/2013,10189608
INSERTED DETAIL,Resources & Corporate Governance,Corporate Property R&M,CPA01,R&M External Contractors,0100,1568.00,Arden Construction Ltd,147430,15/08/2013,10189605
INSERTED DETAIL,Resources & Corporate Governance,Corporate Property R&M,CPA01,R&M External Contractors,0100,644.64,Arden Construction Ltd,147430,15/08/2013,10189606
INSERTED DETAIL,Resources & Corporate Governance,Corporate Property R&M,CPA01,R&M External Contractors,0100,4962.80,Arden Construction Ltd,147430,15/08/2013,10189607
INSERTED DETAIL,Resources & Corporate Governance,Corporate Property R&M,CPA01,R&M External Contractors,0100,455.00,Arden Construction Ltd,147430,15/08/2013,10189856
INSERTED DETAIL,Resources & Corporate Governance ,IT Procurement,CMP00,IT Capital Expenditure,5025,4895.00,Commercial IT Services Ltd,147434,22/08/2013,10189476
INSERTED DETAIL,Resources & Corporate Governance ,Customer and Information Strategy,CIS10,Hardware Maintenance,0376,20615.00,Commercial IT Services Ltd,147434,22/08/2013,10189599
INSERTED DETAIL,Capital Program ,Kitchen Modifications,HIK10,Capital Contract Payments,5000,1898.33,Rixonway Kitchens Ltd,147446,08/08/2013,10187859
INSERTED DETAIL,Capital Program ,Kitchen Modifications,HIK10,Capital Contract Payments,5000,6890.70,Rixonway Kitchens Ltd,147446,29/08/2013,10190504
INSERTED DETAIL,Resources & Corporate Governance ,Domestic Waste Collection,WWC00,Vehicle Running Costs,0201,6160.00,On Site Industrial Limited,147513,22/08/2013,10190026
INSERTED DETAIL,Capital Program ,Disabled Facilities Grant,REN01,Capital Grants,5014,1250.00,Pollards Property Solution,147541,01/08/2013,10189015
INSERTED DETAIL,Capital Program ,Disabled Facilities Grant,REN01,Capital Grants,5014,3552.75,Pollards Property Solution,147541,15/08/2013,10189837
INSERTED DETAIL,Resources & Corporate Governance ,Grounds Maintenance,WGM00,Vehicle Repair and Maintenance,0200,2540.01,Tallis Amos Group Limited,147758,01/08/2013,10187883
INSERTED DETAIL,Resources & Corporate Governance ,Grounds Maintenance,WGM00,Vehicle Repair and Maintenance,0200,735.82,Tallis Amos Group Limited,147758,22/08/2013,10189980
INSERTED DETAIL,Capital Program ,Viaduct Cycleways,CYC02,Capital Contract Payments,5000,44862.66,Currall Lewis & Martin (Construction) Ltd,147769,08/08/2013,10189707
INSERTED DETAIL,Capital Program ,Viaduct Cycleways,CYC02,Capital Contract Payments,5000,42688.99,Currall Lewis & Martin (Construction) Ltd,147769,08/08/2013,10189708
INSERTED DETAIL,Resources & Corporate Governance,Handy man,WHM00,Personal Protective Clothing,0340,2579.60,Cole Creative Communications Ltd,147857,15/08/2013,10189749
INSERTED DETAIL,Resources & Corporate Governance,Handy man,WHM00,External Contractor & Operator,0742,506.40,Coventry Garage Doors,147883,29/08/2013,10189619
INSERTED DETAIL,Resources & Corporate Governance,Handy man,WHM00,External Contractor & Operator,0742,484.00,Coventry Garage Doors,147883,15/08/2013,10189921
INSERTED DETAIL,Resources & Corporate Governance,Handy man,WHM00,External Contractor & Operator,0742,484.00,Coventry Garage Doors,147883,15/08/2013,10189922
INSERTED DETAIL,Capital Program ,Queen's Diamond Jubilee Leisure Centre Project,LEI03,Capital Contract Payments,5000,842181.20,Shepherd Construction Ltd,148014,08/08/2013,10189700
INSERTED DETAIL,Resources & Corporate Governance ,Street Cleansing,WSC00,Vehicle Repair and Maintenance,0200,658.00,Paynes Garages Limited,148024,15/08/2013,10189844
INSERTED DETAIL,,Balance Sheet,BS,Insurance Recoverable,9232,100.00,Paynes Garages Limited,148024,15/08/2013,10189920
INSERTED DETAIL,Resources & Corporate Governance,Handy man,WHM00,External Contractor & Operator,0742,577.50,Dean Hudson,148035,01/08/2013,10188863
INSERTED DETAIL,Resources & Corporate Governance,Handy man,WHM00,External Contractor & Operator,0742,525.00,Dean Hudson,148035,01/08/2013,10189183
INSERTED DETAIL,Resources & Corporate Governance,Handy man,WHM00,External Contractor & Operator,0742,585.00,Dean Hudson,148035,15/08/2013,10189712
INSERTED DETAIL,Resources & Corporate Governance,Handy man,WHM00,External Contractor & Operator,0742,592.50,Dean Hudson,148035,15/08/2013,10190037
INSERTED DETAIL,Resources & Corporate Governance,Handy man,WHM00,External Contractor & Operator,0742,562.50,Dean Hudson,148035,29/08/2013,10190477
INSERTED DETAIL,Resources & Corporate Governance,Corporate Property R&M,CPA01,R&M External Contractors,0100,3000.00,Press & Starkey,148069,08/08/2013,10188665
INSERTED DETAIL,Sustainable Environment ,Caldecott Park/Town Centre Area,PKS00,Maintenance of Equipment,0301,2397.00,Morral Play Services (Ltd),148092,15/08/2013,10189094
INSERTED DETAIL,Economy Development & Culture,Art Gallery and Museum,AGM00,Recruitment Expenses,0012,19.95,Team Prevent UK Ltd,148151,08/08/2013,10188514
INSERTED DETAIL,Resources & Corporate Governance ,"Communications, Consultation and Information Team",BTR20,Recruitment Expenses,0012,19.95,Team Prevent UK Ltd,148151,08/08/2013,10188514
INSERTED DETAIL,Resources & Corporate Governance ,Change Team,BTR50,Recruitment Expenses,0012,19.95,Team Prevent UK Ltd,148151,08/08/2013,10188514
INSERTED DETAIL,Sustainable Environment ,East European Violence Project,CAD32,Recruitment Expenses,0012,19.95,Team Prevent UK Ltd,148151,08/08/2013,10188514
INSERTED DETAIL,Economy Development & Culture,Car Parks General,CPK01,Recruitment Expenses,0012,3.99,Team Prevent UK Ltd,148151,08/08/2013,10188514
INSERTED DETAIL,Resources & Corporate Governance,Business Support Services,CSS10,Recruitment Expenses,0012,19.95,Team Prevent UK Ltd,148151,08/08/2013,10188514
INSERTED DETAIL,Economy Development & Culture,Decrim. of Car Parking on street parking,DPE02,Recruitment Expenses,0012,15.96,Team Prevent UK Ltd,148151,08/08/2013,10188514
INSERTED DETAIL,Sustainable Inclusive Communities,Housing Options Team,HOT00,Recruitment Expenses,0012,19.95,Team Prevent UK Ltd,148151,08/08/2013,10188514
INSERTED DETAIL,Economy Development & Culture,Positive Futures,LSD04,Recruitment Expenses,0012,79.80,Team Prevent UK Ltd,148151,08/08/2013,10188514
INSERTED DETAIL,Economy Development & Culture,Planning General/Income,PLN00,Recruitment Expenses,0012,19.95,Team Prevent UK Ltd,148151,08/08/2013,10188514
INSERTED DETAIL,Sustainable Environment ,East European Violence Project,CAD32,Employee wellbeing/Other employee expenses,0021,17.50,Team Prevent UK Ltd,148151,08/08/2013,10188514
INSERTED DETAIL,Economy Development & Culture,Car Parks General,CPK01,Employee wellbeing/Other employee expenses,0021,14.00,Team Prevent UK Ltd,148151,08/08/2013,10188514
INSERTED DETAIL,Economy Development & Culture,Decrim. of Car Parking on street parking,DPE02,Employee wellbeing/Other employee expenses,0021,56.00,Team Prevent UK Ltd,148151,08/08/2013,10188514
INSERTED DETAIL,Housing Revenue Account ,Property Maintenance,MAN23,Employee wellbeing/Other employee expenses,0021,85.00,Team Prevent UK Ltd,148151,08/08/2013,10188514
INSERTED DETAIL,Resources & Corporate Governance ,Toilet Cleaning,WBC01,Employee wellbeing/Other employee expenses,0021,52.50,Team Prevent UK Ltd,148151,08/08/2013,10188514
INSERTED DETAIL,Resources & Corporate Governance,Handy man,WHM00,Employee wellbeing/Other employee expenses,0021,92.50,Team Prevent UK Ltd,148151,08/08/2013,10188514
INSERTED DETAIL,Resources & Corporate Governance ,Garage Salaries,WVR03,Employee wellbeing/Other employee expenses,0021,40.00,Team Prevent UK Ltd,148151,08/08/2013,10188514
INSERTED DETAIL,Resources & Corporate Governance ,Domestic Waste Collection,WWC00,Employee wellbeing/Other employee expenses,0021,137.50,Team Prevent UK Ltd,148151,08/08/2013,10188514
INSERTED DETAIL,Housing Revenue Account ,Sheltered Housing,AGP00,Employee wellbeing/Other employee expenses,0021,121.50,Team Prevent UK Ltd,148151,29/08/2013,10190506
INSERTED DETAIL,Housing Revenue Account ,Control Centre (HRA),CCE00,Employee wellbeing/Other employee expenses,0021,40.00,Team Prevent UK Ltd,148151,29/08/2013,10190506
INSERTED DETAIL,Economy Development & Culture,Car Parks General,CPK01,Employee wellbeing/Other employee expenses,0021,46.49,Team Prevent UK Ltd,148151,29/08/2013,10190506
INSERTED DETAIL,Resources & Corporate Governance,Customer Support Services,CSS00,Employee wellbeing/Other employee expenses,0021,19.95,Team Prevent UK Ltd,148151,29/08/2013,10190506
INSERTED DETAIL,Economy Development & Culture,Decrim. of Car Parking on street parking,DPE02,Employee wellbeing/Other employee expenses,0021,185.96,Team Prevent UK Ltd,148151,29/08/2013,10190506
INSERTED DETAIL,Resources & Corporate Governance ,Safety and Resilience,EPL00,Employee wellbeing/Other employee expenses,0021,19.95,Team Prevent UK Ltd,148151,29/08/2013,10190506
INSERTED DETAIL,Economy Development & Culture,Positive Futures,LSD04,Employee wellbeing/Other employee expenses,0021,37.45,Team Prevent UK Ltd,148151,29/08/2013,10190506
INSERTED DETAIL,Resources & Corporate Governance ,General Administration,WAD00,Employee wellbeing/Other employee expenses,0021,39.90,Team Prevent UK Ltd,148151,29/08/2013,10190506
INSERTED DETAIL,Resources & Corporate Governance ,Toilet Cleaning,WBC01,Employee wellbeing/Other employee expenses,0021,195.00,Team Prevent UK Ltd,148151,29/08/2013,10190506
INSERTED DETAIL,Resources & Corporate Governance ,Grounds Maintenance,WGM00,Employee wellbeing/Other employee expenses,0021,276.00,Team Prevent UK Ltd,148151,29/08/2013,10190506
INSERTED DETAIL,Resources & Corporate Governance,Handy man,WHM00,Employee wellbeing/Other employee expenses,0021,52.50,Team Prevent UK Ltd,148151,29/08/2013,10190506
INSERTED DETAIL,Resources & Corporate Governance ,Street Cleansing,WSC00,Employee wellbeing/Other employee expenses,0021,195.00,Team Prevent UK Ltd,148151,29/08/2013,10190506
INSERTED DETAIL,Resources & Corporate Governance ,Garage Salaries,WVR03,Employee wellbeing/Other employee expenses,0021,40.00,Team Prevent UK Ltd,148151,29/08/2013,10190506
INSERTED DETAIL,Resources & Corporate Governance ,Domestic Waste Collection,WWC00,Employee wellbeing/Other employee expenses,0021,195.00,Team Prevent UK Ltd,148151,29/08/2013,10190506
INSERTED DETAIL,Resources & Corporate Governance ,General Administration,WAD00,Training fees,0011,1435.00,TMS Consultancy,148240,01/08/2013,10188815
INSERTED DETAIL,Sustainable Environment ,Head of Environmental Services,ENV00,Training fees,0011,1435.00,TMS Consultancy,148240,15/08/2013,10189477
INSERTED DETAIL,Sustainable Environment ,Caldecott Park/Town Centre Area,PKS00,Maintenance of Equipment,0301,775.76,Russell Leisure Limited,148246,01/08/2013,10188909
INSERTED DETAIL,Sustainable Environment ,Caldecott Park/Town Centre Area,PKS00,Maintenance of Equipment,0301,775.76,Russell Leisure Limited,148246,15/08/2013,10189963
INSERTED DETAIL,Resources & Corporate Governance ,IT Procurement,CMP00,IT Capital Expenditure,5025,439.47,Probrand Limited,148276,22/08/2013,10190098
INSERTED DETAIL,Capital Program ,Vehicle Workshop Extension,VWE00,Capital Contract Payments,5000,1431.91,Adbruf Limited,148313,01/08/2013,10189080
INSERTED DETAIL,Resources & Corporate Governance ,General Administration,WAD00,Training fees,0011,1237.00,Park Hill Training Ltd,148323,08/08/2013,10189275
INSERTED DETAIL,Sustainable Inclusive Communities,Housing Options Team,HOT00,External Legal Costs,0741,500.00,Mr William Emerson,148361,22/08/2013,10185382
INSERTED DETAIL,Sustainable Inclusive Communities,Woodside Park,TVR00,External Contractor & Operator,0742,950.00,"Gotch, Saunders & Surridge LLP , t/a GSS Architecture",148432,01/08/2013,10188677
INSERTED DETAIL,Sustainable Inclusive Communities,Housing Strategy & Enabling,HSE00,Development Activities,0450,975.00,"Gotch, Saunders & Surridge LLP , t/a GSS Architecture",148432,15/08/2013,10189037
INSERTED DETAIL,Sustainable Inclusive Communities,Woodside Park,TVR00,Development Activities,0450,46.94,"Gotch, Saunders & Surridge LLP , t/a GSS Architecture",148432,15/08/2013,10189037
INSERTED DETAIL,Resources & Corporate Governance,Corporate Property R&M,CPA01,R&M External Contractors,0100,550.00,Envirotech Building Services Ltd,148501,15/08/2013,10189647
INSERTED DETAIL,Economy Development & Culture,Grants and Subscriptions,LGS00,Grants To Voluntary Organisations,0720,1000.00,Rugby Junior Triathlon Club,148619,29/08/2013,10190316
INSERTED DETAIL,Economy Development & Culture,Visitor Centre,VSC00,Purchases for Resale,0305,515.11,British Fossils,148749,15/08/2013,10189881
INSERTED DETAIL,Housing Revenue Account ,Gas Heating Systems,UMR01,R&M External Contractors,0100,866.92,Robert Heath Heating Ltd,148858,01/08/2013,10188605
INSERTED DETAIL,Housing Revenue Account ,Gas Heating Systems,UMR01,R&M External Contractors,0100,866.92,Robert Heath Heating Ltd,148858,01/08/2013,10188606
INSERTED DETAIL,Housing Revenue Account ,Gas Heating Systems,UMR01,R&M External Contractors,0100,32320.00,Robert Heath Heating Ltd,148858,01/08/2013,10189049
INSERTED DETAIL,Housing Revenue Account ,Gas Heating Systems,UMR01,R&M External Contractors,0100,866.92,Robert Heath Heating Ltd,148858,08/08/2013,10189272
INSERTED DETAIL,Housing Revenue Account ,Gas Heating Systems,UMR01,R&M External Contractors,0100,866.92,Robert Heath Heating Ltd,148858,29/08/2013,10190119
INSERTED DETAIL,Housing Revenue Account ,Gas Heating Systems,UMR01,R&M External Contractors,0100,37168.00,Robert Heath Heating Ltd,148858,29/08/2013,10190120
INSERTED DETAIL,Housing Revenue Account ,Unplanned Maintenance and Repair,UMR00,R&M External Contractors,0100,439.27,Robert Heath Heating Ltd,148858,22/08/2013,10190238
INSERTED DETAIL,Housing Revenue Account ,Gas Heating Systems,UMR01,R&M External Contractors,0100,551.25,Robert Heath Heating Ltd,148858,22/08/2013,10190238
INSERTED DETAIL,Sustainable Inclusive Communities,Woodside Park,TVR00,R&M External Contractors,0100,80.00,Robert Heath Heating Ltd,148858,29/08/2013,10190576
INSERTED DETAIL,Housing Revenue Account ,Unplanned Maintenance and Repair,UMR00,R&M External Contractors,0100,689.62,Robert Heath Heating Ltd,148858,29/08/2013,10190576
INSERTED DETAIL,Housing Revenue Account ,Gas Heating Systems,UMR01,R&M External Contractors,0100,93.75,Robert Heath Heating Ltd,148858,29/08/2013,10190576
INSERTED DETAIL,Housing Revenue Account ,Carbon Monoxide Detectors,UMR07,R&M External Contractors,0100,384.00,Robert Heath Heating Ltd,148858,29/08/2013,10190576
INSERTED DETAIL,Housing Revenue Account ,Repairs and Maintenance - Void works,UMR09,R&M External Contractors,0100,1147.50,Robert Heath Heating Ltd,148858,29/08/2013,10190576
INSERTED DETAIL,Housing Revenue Account ,Supervision and Management General,MAN00,Movement Incentives,0454,28.14,Robert Heath Heating Ltd,148858,29/08/2013,10190576
INSERTED DETAIL,Resources & Corporate Governance ,IT Procurement,CMP00,IT Capital Expenditure,5025,2728.07,Sapphire Network Services Ltd,148862,15/08/2013,10189884
INSERTED DETAIL,Resources & Corporate Governance ,IT Procurement,CMP00,IT Capital Expenditure,5025,1439.15,Sapphire Network Services Ltd,148862,15/08/2013,10190052
INSERTED DETAIL,Capital Program ,Parish and Rural Capital Spending,CGR03,Capital Grants,5014,5720.00,Shilton & Barnacle Parish Council,148879,22/08/2013,10190041
INSERTED DETAIL,Sustainable Environment ,Head of Environmental Services,ENV00,Training fees,0011,1235.00,Community Safety Professionals Ltd,148890,22/08/2013,10190245
INSERTED DETAIL,Capital Program ,Queen's Diamond Jubilee Leisure Centre Project,LEI03,Capital Contract Payments,5000,1187.33,Portakabin Ltd,148919,15/08/2013,10189416
INSERTED DETAIL,Economy Development & Culture,AGM Exhibitions/Outreach,AGM02,Other Miscellaneous Expenses,0444,500.00,Pip Dickens,148938,01/08/2013,10189021
INSERTED DETAIL,Resources & Corporate Governance,Central Business Support Services,CSS15,Photocopying,0354,1386.69,Xerox Finance Ltd,148940,29/08/2013,10190515
INSERTED DETAIL,Capital Program ,Kitchen Modifications,HIK10,Capital Contract Payments,5000,900.00,Capita Symonds Ltd,148946,08/08/2013,10189308
INSERTED DETAIL,Economy Development & Culture,The Benn Hall,BHL00,Purchases for Resale,0305,1597.90,Matthew Clark Wholesale Ltd,148975,01/08/2013,10187234
INSERTED DETAIL,Economy Development & Culture,The Benn Hall,BHL00,Purchases for Resale,0305,1150.10,Matthew Clark Wholesale Ltd,148975,01/08/2013,10189034
INSERTED DETAIL,Economy Development & Culture,The Benn Hall,BHL00,Purchases for Resale,0305,1056.12,Matthew Clark Wholesale Ltd,148975,01/08/2013,10189295
INSERTED DETAIL,Economy Development & Culture,The Benn Hall,BHL00,Purchases for Resale,0305,605.57,Matthew Clark Wholesale Ltd,148975,22/08/2013,10190250
INSERTED DETAIL,Housing Revenue Account ,Unplanned Maintenance and Repair,UMR00,R&M External Contractors,0100,534.92,Central Housing Investment Consortium Ltd,149019,15/08/2013,10185712
INSERTED DETAIL,Resources & Corporate Governance,Handy man,WHM00,External Contractor & Operator,0742,451.20,D & M Ball Carpets,149023,29/08/2013,10189830
INSERTED DETAIL,Sustainable Environment ,Cemeteries General,CEM00,External Contractor & Operator,0742,650.00,St Margarets Parochial Church Council of Wolston,149060,29/08/2013,10190557
INSERTED DETAIL,Resources & Corporate Governance,Handy man,WHM00,External Contractor & Operator,0742,500.00,PJR Services,149062,01/08/2013,10188798
INSERTED DETAIL,Resources & Corporate Governance,Handy man,WHM00,External Contractor & Operator,0742,500.00,PJR Services,149062,01/08/2013,10189217
INSERTED DETAIL,Resources & Corporate Governance,Handy man,WHM00,External Contractor & Operator,0742,500.00,PJR Services,149062,15/08/2013,10189876
INSERTED DETAIL,Resources & Corporate Governance,Handy man,WHM00,External Contractor & Operator,0742,500.00,PJR Services,149062,22/08/2013,10190170
INSERTED DETAIL,Resources & Corporate Governance,Handy man,WHM00,External Contractor & Operator,0742,500.00,PJR Services,149062,29/08/2013,10190475
INSERTED DETAIL,Capital Program ,Corporate Property Enhancements,CPE00,Capital Contract Payments,5000,550.00,Cad-Capture,149101,08/08/2013,10189404
INSERTED DETAIL,Housing Revenue Account ,Repairs and Maintenance - Void works,UMR09,R&M External Contractors,0100,600.00,Elite Surveyors Ltd,149107,01/08/2013,10189172
INSERTED DETAIL,Resources & Corporate Governance ,Customer and Information Strategy,CIS10,Consultancy Costs,0740,1808.00,Advent IM Ltd,149114,22/08/2013,10189597
INSERTED DETAIL,Sustainable Environment,Regulatory Services,REG00,External Legal Costs,0741,1600.00,Mr Marc Living,149120,01/08/2013,10187931
INSERTED DETAIL,Resources & Corporate Governance ,General Administration,WAD00,Materials,0303,3633.88,Cirrus Research plc,149128,01/08/2013,10188983
INSERTED DETAIL,Resources & Corporate Governance,Corporate Property R&M,CPA01,R&M External Contractors,0100,1500.00,Maybank Painters & Decorators,149134,01/08/2013,10189040
INSERTED DETAIL,Economy Development & Culture,AGM Exhibitions/Outreach,AGM02,Other Miscellaneous Expenses,0444,1058.37,Templar Freight Services,149142,01/08/2013,10189236
INSERTED DETAIL,Economy Development & Culture,AGM Exhibitions/Outreach,AGM02,Other Miscellaneous Expenses,0444,1870.00,Templar Freight Services,149142,29/08/2013,10190331
INSERTED DETAIL,Resources & Corporate Governance ,Change Team,BTR50,Payments to Other Local Authorities,0710,1500.00,Stoke on Trent City Council,149144,15/08/2013,10188982
INSERTED DETAIL,Housing Revenue Account ,Supervision and Management General,MAN00,Movement Incentives,0454,500.00,REDACTED PERSONAL DATA,149146,22/08/2013,10188931
INSERTED DETAIL,Resources & Corporate Governance ,Town Hall,OFF00,Contract Cleaning,0170,4195.83,Superclean Services Wothorpe,149153,08/08/2013,10189125
INSERTED DETAIL,Resources & Corporate Governance ,WSU Depot,WDP00,Contract Cleaning,0170,395.83,Superclean Services Wothorpe,149153,08/08/2013,10189125
INSERTED DETAIL,Resources & Corporate Governance ,Grounds Maintenance,WGM00,Contract Cleaning,0170,200.00,Superclean Services Wothorpe,149153,08/08/2013,10189125
INSERTED DETAIL,Resources & Corporate Governance ,Town Hall,OFF00,Contract Cleaning,0170,4195.83,Superclean Services Wothorpe,149153,15/08/2013,10189401
INSERTED DETAIL,Resources & Corporate Governance ,WSU Depot,WDP00,Contract Cleaning,0170,395.83,Superclean Services Wothorpe,149153,15/08/2013,10189401
INSERTED DETAIL,Resources & Corporate Governance ,Grounds Maintenance,WGM00,Contract Cleaning,0170,200.00,Superclean Services Wothorpe,149153,15/08/2013,10189401
INSERTED DETAIL,Housing Revenue Account ,Sheltered Housing,AGP00,Contract Cleaning,0170,11850.58,Superclean Services Wothorpe,149153,15/08/2013,10189823
INSERTED DETAIL,Sustainable Inclusive Communities,Housing Options Team,HOT00,Contract Cleaning,0170,112.50,Superclean Services Wothorpe,149153,15/08/2013,10189823
INSERTED DETAIL,Housing Revenue Account ,Estate Management,MAN22,Contract Cleaning,0170,2552.47,Superclean Services Wothorpe,149153,15/08/2013,10189823
INSERTED DETAIL,Housing Revenue Account ,Multi-Storey Flats,MSF00,Contract Cleaning,0170,1434.45,Superclean Services Wothorpe,149153,15/08/2013,10189823
INSERTED DETAIL,Housing Revenue Account ,Sheltered Housing,AGP00,Contract Cleaning,0170,11850.58,Superclean Services Wothorpe,149153,15/08/2013,10189824
INSERTED DETAIL,Sustainable Inclusive Communities,Housing Options Team,HOT00,Contract Cleaning,0170,112.50,Superclean Services Wothorpe,149153,15/08/2013,10189824
INSERTED DETAIL,Housing Revenue Account ,Estate Management,MAN22,Contract Cleaning,0170,2552.47,Superclean Services Wothorpe,149153,15/08/2013,10189824
INSERTED DETAIL,Housing Revenue Account ,Multi-Storey Flats,MSF00,Contract Cleaning,0170,1434.45,Superclean Services Wothorpe,149153,15/08/2013,10189824
INSERTED DETAIL,Resources & Corporate Governance,Handy man,WHM00,External Contractor & Operator,0742,668.75,R Duffy Services,149161,08/08/2013,10189397
INSERTED DETAIL,Resources & Corporate Governance,Handy man,WHM00,External Contractor & Operator,0742,1043.75,R Duffy Services,149161,15/08/2013,10189711
INSERTED DETAIL,Resources & Corporate Governance,Handy man,WHM00,External Contractor & Operator,0742,1062.50,R Duffy Services,149161,22/08/2013,10190034
INSERTED DETAIL,Resources & Corporate Governance,Handy man,WHM00,External Contractor & Operator,0742,962.50,R Duffy Services,149161,22/08/2013,10190161
INSERTED DETAIL,Resources & Corporate Governance ,TREE WORKS,WGM01,Materials,0303,432.25,Treeworker,149162,15/08/2013,10189656
INSERTED DETAIL,Sustainable Inclusive Communities,CL Grants,CGS00,Grants To Voluntary Organisations,0720,1500.00,Hoskyn Fund for the Disabled,149178,08/08/2013,10189726
INSERTED DETAIL,Economy Development & Culture,Planning General/Income,PLN00,Training fees,0011,3907.50,CILEx Law School,149188,15/08/2013,10189953
INSERTED DETAIL,Economy Development & Culture,Grants and Subscriptions,LGS00,Grants To Voluntary Organisations,0720,1000.00,Rugby Music Festival,149207,22/08/2013,10190145
INSERTED DETAIL,Economy Development & Culture,Grants and Subscriptions,LGS00,Grants To Voluntary Organisations,0720,1000.00,Rugby St Andrews RFC Womens Section,149222,29/08/2013,10190399
detail,Economy Development & Culture,Positive Futures,LSD04,Development Activities,0450,504.00,Rock UK Adventure Centres Ltd,149224,29/08/2013,10190556
,Resources & Corporate Governance ,IT Procurement,CMP00,Hardware Purchase,0375,508.00,Comodo Limited,,08/08/2013,29085
,Economy Development & Culture,Visitor Centre,VSC00,Special Events,0447,640.00,Leicester Tigers,,08/08/2013,29085
,,Balance Sheet,BS,Cov & Warks Pooling Fund,9476,1380109.00,Cov & Warks Pooling Fund,,16/08/2013,28971
,,Balance Sheet,BS,Business Rate Retention Scheme payment,9476,2118340.00,CLG,,19/08/2013,28983
,,Balance Sheet,BS,Business Rate Retention Scheme payment,9476,424665.00,WCC County Fund,,19/08/2013,28982
,Sustainable Enironment,Caldecott Park Caf� & Benn Hall,WGM02,Purchases for Resale,0303,711.10,Booker Ltd,,20/08/2013,29069
,Economy Development & Culture,Car Parks General,HKC01,Payment Card Costs,0444,880.00,CRB,,21/08/2013,29006
